Department,Entity,Transaction Date,Expense Type,Expense Area,Supplier,Transaction No.,Amount
"Department for Business, Energy and Industrial Strategy",The Coal Authority,03/10/2016,Software Licenses - SaaS,Application Management,RBS GPC Sept 2016,7288,107.67
"Department for Business, Energy and Industrial Strategy",The Coal Authority,03/10/2016,Training & Education,Application Management,RBS GPC Sept 2016,7288,1515.53
"Department for Business, Energy and Industrial Strategy",The Coal Authority,09/11/2016,Business Meetings,Board,5863-RSE Scotland Irrecoverable VAT,6825,201.44
"Department for Business, Energy and Industrial Strategy",The Coal Authority,31/10/2016,Stationery,Board,Ace Of Mansfield Ltd,7101,37.3
"Department for Business, Energy and Industrial Strategy",The Coal Authority,31/10/2016,Stationery,Board,Ace Of Mansfield Ltd,7101,37.3
"Department for Business, Energy and Industrial Strategy",The Coal Authority,05/10/2016,Applications Consultancy,BOSS Programme,6787 - Wax Digital,7432,-14402.5
"Department for Business, Energy and Industrial Strategy",The Coal Authority,05/10/2016,Applications Consultancy,BOSS Programme,6788 - Wax Digital,7432,-14402.5
"Department for Business, Energy and Industrial Strategy",The Coal Authority,05/10/2016,Applications Consultancy,BOSS Programme,6793 - Wax Digital,7432,-14250
"Department for Business, Energy and Industrial Strategy",The Coal Authority,05/10/2016,Applications Consultancy,BOSS Programme,7205 - Sapphire,7432,-576.8
"Department for Business, Energy and Industrial Strategy",The Coal Authority,05/10/2016,Applications Consultancy,BOSS Programme,7207 + 7203 - Sapphire,7432,2775
"Department for Business, Energy and Industrial Strategy",The Coal Authority,11/11/2016,Applications Consultancy,BOSS Programme,Midland Software Ltd,7168,494.5
"Department for Business, Energy and Industrial Strategy",The Coal Authority,21/09/2016,Applications Consultancy,BOSS Programme,Sapphire Systems Plc,7205,115
"Department for Business, Energy and Industrial Strategy",The Coal Authority,21/09/2016,Applications Consultancy,BOSS Programme,Sapphire Systems Plc,7205,112.8
"Department for Business, Energy and Industrial Strategy",The Coal Authority,21/09/2016,Applications Consultancy,BOSS Programme,Sapphire Systems Plc,7205,925
"Department for Business, Energy and Industrial Strategy",The Coal Authority,31/10/2016,Applications Consultancy,BOSS Programme,Sapphire Systems Plc,7209,37.5
"Department for Business, Energy and Industrial Strategy",The Coal Authority,31/10/2016,Applications Consultancy,BOSS Programme,Sapphire Systems Plc,7209,158
"Department for Business, Energy and Industrial Strategy",The Coal Authority,31/10/2016,Applications Consultancy,BOSS Programme,Sapphire Systems Plc,7209,6.72
"Department for Business, Energy and Industrial Strategy",The Coal Authority,31/10/2016,Applications Consultancy,BOSS Programme,Sapphire Systems Plc,7209,65.82
"Department for Business, Energy and Industrial Strategy",The Coal Authority,31/10/2016,Applications Consultancy,BOSS Programme,Sapphire Systems Plc,7209,157.6
"Department for Business, Energy and Industrial Strategy",The Coal Authority,31/10/2016,Applications Consultancy,BOSS Programme,Sapphire Systems Plc,7209,4.17
"Department for Business, Energy and Industrial Strategy",The Coal Authority,28/10/2016,Applications Consultancy,BOSS Programme,Wax Digital Ltd,6793,14250
"Department for Business, Energy and Industrial Strategy",The Coal Authority,31/10/2016,Applications Consultancy,BOSS Programme,Wax Digital Ltd,6787,14402.5
"Department for Business, Energy and Industrial Strategy",The Coal Authority,31/10/2016,Applications Consultancy,BOSS Programme,Wax Digital Ltd,6788,14402.5
"Department for Business, Energy and Industrial Strategy",The Coal Authority,31/10/2016,Applications Consultancy,BOSS Programme,Wax Digital Ltd,6789,14280
"Department for Business, Energy and Industrial Strategy",The Coal Authority,31/10/2016,Applications Consultancy,BOSS Programme,Wax Digital Ltd,6791,42840
"Department for Business, Energy and Industrial Strategy",The Coal Authority,03/10/2016,Business Meetings,BOSS Programme,RBS GPC Sept 2016,7288,728.24
"Department for Business, Energy and Industrial Strategy",The Coal Authority,05/10/2016,Central Training,BOSS Programme,7205 - Sapphire,7432,2775
"Department for Business, Energy and Industrial Strategy",The Coal Authority,05/10/2016,CY - Intangible IT - Additions,BOSS Programme,7207 + 7203 - Sapphire,7432,-2775
"Department for Business, Energy and Industrial Strategy",The Coal Authority,21/09/2016,CY - Intangible IT - Additions,BOSS Programme,Sapphire Systems Plc,7205,925
"Department for Business, Energy and Industrial Strategy",The Coal Authority,21/09/2016,CY - Intangible IT - Additions,BOSS Programme,Sapphire Systems Plc,7205,925
"Department for Business, Energy and Industrial Strategy",The Coal Authority,21/09/2016,CY - Intangible IT - Additions,BOSS Programme,Sapphire Systems Plc,7205,740
"Department for Business, Energy and Industrial Strategy",The Coal Authority,10/10/2016,CY - Intangible IT - Additions,BOSS Programme,Sapphire Systems Plc,6832,92.5
"Department for Business, Energy and Industrial Strategy",The Coal Authority,28/10/2016,CY - Intangible IT - Additions,BOSS Programme,Sapphire Systems Plc,7210,995
"Department for Business, Energy and Industrial Strategy",The Coal Authority,31/10/2016,CY - Intangible IT - Additions,BOSS Programme,Sapphire Systems Plc,6923,1295
"Department for Business, Energy and Industrial Strategy",The Coal Authority,31/10/2016,CY - Intangible IT - Additions,BOSS Programme,Sapphire Systems Plc,7207,2985
"Department for Business, Energy and Industrial Strategy",The Coal Authority,31/10/2016,CY - Intangible IT - Additions,BOSS Programme,Sapphire Systems Plc,7209,995
"Department for Business, Energy and Industrial Strategy",The Coal Authority,09/11/2016,CY - Intangible IT - Additions,BOSS Programme,Sapphire Systems Plc,6831,170
"Department for Business, Energy and Industrial Strategy",The Coal Authority,22/11/2016,CY - Intangible IT - Additions,BOSS Programme,Sapphire Systems Plc,7202,-200
"Department for Business, Energy and Industrial Strategy",The Coal Authority,22/11/2016,CY - Intangible IT - Additions,BOSS Programme,Sapphire Systems Plc,7206,15
"Department for Business, Energy and Industrial Strategy",The Coal Authority,28/11/2016,CY - Intangible IT - Additions,BOSS Programme,Sapphire Systems Plc,7203,-1315
"Department for Business, Energy and Industrial Strategy",The Coal Authority,28/11/2016,CY - Intangible IT - Additions,BOSS Programme,Sapphire Systems Plc,7204,-2590
"Department for Business, Energy and Industrial Strategy",The Coal Authority,28/11/2016,CY - Software Licences - Additions,BOSS Programme,6032 - SAPPHIRE,7286,4425
"Department for Business, Energy and Industrial Strategy",The Coal Authority,07/11/2016,CY - Software Licences - Additions,BOSS Programme,Sapphire Systems Plc,7211,3600
"Department for Business, Energy and Industrial Strategy",The Coal Authority,28/11/2016,Software Licenses - On Premise,BOSS Programme,6032 - SAPPHIRE,7286,-4425
"Department for Business, Energy and Industrial Strategy",The Coal Authority,07/11/2016,Software Support & Maintenance - On Premise,BOSS Programme,Sapphire Systems Plc,7211,518.79
"Department for Business, Energy and Industrial Strategy",The Coal Authority,05/10/2016,Software Support & Maintenance - SaaS,BOSS Programme,6787 - Wax Digital,7432,14402.5
"Department for Business, Energy and Industrial Strategy",The Coal Authority,05/10/2016,Software Support & Maintenance - SaaS,BOSS Programme,6788 - Wax Digital,7432,14402.5
"Department for Business, Energy and Industrial Strategy",The Coal Authority,05/10/2016,Software Support & Maintenance - SaaS,BOSS Programme,6793 - Wax Digital,7432,14250
"Department for Business, Energy and Industrial Strategy",The Coal Authority,26/10/2016,Temporary Contractors,BOSS Programme,Hays,6908,1950
"Department for Business, Energy and Industrial Strategy",The Coal Authority,03/11/2016,Temporary Contractors,BOSS Programme,Hays,6961,1950
"Department for Business, Energy and Industrial Strategy",The Coal Authority,27/11/2016,Temporary Contractors,BOSS Programme,Hays,6907,585
"Department for Business, Energy and Industrial Strategy",The Coal Authority,01/12/2016,Temporary Contractors,BOSS Programme,Huxley Associates,7360,-1950
"Department for Business, Energy and Industrial Strategy",The Coal Authority,26/10/2016,Temporary Contractors,BOSS Programme,S F Recruitment Limited,6803,1000
"Department for Business, Energy and Industrial Strategy",The Coal Authority,02/11/2016,Temporary Contractors,BOSS Programme,S F Recruitment Limited,6802,1000
"Department for Business, Energy and Industrial Strategy",The Coal Authority,09/11/2016,Temporary Contractors,BOSS Programme,S F Recruitment Limited,7173,800
"Department for Business, Energy and Industrial Strategy",The Coal Authority,16/11/2016,Temporary Contractors,BOSS Programme,S F Recruitment Limited,7272,700
"Department for Business, Energy and Industrial Strategy",The Coal Authority,03/10/2016,Training & Education,BOSS Programme,RBS GPC Sept 2016,7288,220.55
"Department for Business, Energy and Industrial Strategy",The Coal Authority,09/11/2016,Business Meetings,Business Development,6523-GPC irrecoverable Client VAT,6825,0.81
"Department for Business, Energy and Industrial Strategy",The Coal Authority,30/11/2016,Business Meetings,Business Development,7288-GPC - Irrecoverable VAT,7611,0.59
"Department for Business, Energy and Industrial Strategy",The Coal Authority,03/10/2016,Business Meetings,Business Development,RBS GPC Sept 2016,7288,2.91
"Department for Business, Energy and Industrial Strategy",The Coal Authority,03/10/2016,Fuel (Vehicle),Business Development,RBS GPC Sept 2016,7288,25.35
"Department for Business, Energy and Industrial Strategy",The Coal Authority,03/10/2016,Incidentals,Business Development,RBS GPC Sept 2016,7288,18.5
"Department for Business, Energy and Industrial Strategy",The Coal Authority,03/10/2016,Subsistence Allowances,Business Development,RBS GPC Sept 2016,7288,57.43
"Department for Business, Energy and Industrial Strategy",The Coal Authority,30/11/2016,Damp Proof Survey Fees,Coal Products,6377-Heritage Preservation,7387,156
"Department for Business, Energy and Industrial Strategy",The Coal Authority,03/10/2016,Business Entertainment / Hospitality,Communications & Brand,RBS GPC Sept 2016,7288,13.83
"Department for Business, Energy and Industrial Strategy",The Coal Authority,27/10/2016,Public Relations,Communications & Brand,Allsigns,7139,141.8
"Department for Business, Energy and Industrial Strategy",The Coal Authority,31/10/2016,Public Relations,Communications & Brand,Gorkana Group Ltd,6982,589.53
"Department for Business, Energy and Industrial Strategy",The Coal Authority,31/10/2016,Public Relations,Communications & Brand,Gorkana Group Ltd,6983,235.47
"Department for Business, Energy and Industrial Strategy",The Coal Authority,03/10/2016,Stationery,Customer Services,RBS GPC Sept 2016,7288,89.64
"Department for Business, Energy and Industrial Strategy",The Coal Authority,10/11/2016,Applications Consultancy,Data Solutions,Scisys Uk Ltd,7293,1456.4
"Department for Business, Energy and Industrial Strategy",The Coal Authority,10/11/2016,Applications Consultancy,Data Solutions,Scisys Uk Ltd,7293,184.83
"Department for Business, Energy and Industrial Strategy",The Coal Authority,10/11/2016,Applications Consultancy,Data Solutions,Scisys Uk Ltd,7293,530.4
"Department for Business, Energy and Industrial Strategy",The Coal Authority,07/12/2016,BGS Royalty,Data Solutions,6845 NERC,7574,14582.48
"Department for Business, Energy and Industrial Strategy",The Coal Authority,07/12/2016,BGS Royalty,Data Solutions,6845 NERC,7612,-14582.48
"Department for Business, Energy and Industrial Strategy",The Coal Authority,10/11/2016,CY - Intangible IT - Additions,Data Solutions,Scisys Uk Ltd,7293,14488.82
"Department for Business, Energy and Industrial Strategy",The Coal Authority,19/10/2016,Ordance Survey Map Charges,Data Solutions,Ordnance Survey,7218,1577.2
"Department for Business, Energy and Industrial Strategy",The Coal Authority,10/11/2016,Requests For Change,Data Solutions,Scisys Uk Ltd,7293,1345.65
"Department for Business, Energy and Industrial Strategy",The Coal Authority,10/11/2016,Requests For Change,Data Solutions,Scisys Uk Ltd,7293,612.53
"Department for Business, Energy and Industrial Strategy",The Coal Authority,10/11/2016,Software Support & Maintenance - On Premise,Data Solutions,Scisys Uk Ltd,7293,6613.73
"Department for Business, Energy and Industrial Strategy",The Coal Authority,08/11/2016,Legal - General,Development - Development Management,Dla Piper Uk Llp,7322,3695
"Department for Business, Energy and Industrial Strategy",The Coal Authority,03/10/2016,Business Entertainment / Hospitality,Development - Legal,RBS GPC Sept 2016,7288,13.85
"Department for Business, Energy and Industrial Strategy",The Coal Authority,21/10/2016,Legal - General,Development - Licensing,Anderson Strathern,6926,39
"Department for Business, Energy and Industrial Strategy",The Coal Authority,21/10/2016,Legal - General,Development - Licensing,Anderson Strathern,6926,60
"Department for Business, Energy and Industrial Strategy",The Coal Authority,28/10/2016,Temporary Contractors,Development � Permissions,Key Personnel Solutions Ltd,6920,1339.88
"Department for Business, Energy and Industrial Strategy",The Coal Authority,11/11/2016,Temporary Contractors,Development � Permissions,Key Personnel Solutions Ltd,7164,1377.68
"Department for Business, Energy and Industrial Strategy",The Coal Authority,11/11/2016,Temporary Contractors,Development � Permissions,Key Personnel Solutions Ltd,7164,1377.9
"Department for Business, Energy and Industrial Strategy",The Coal Authority,10/11/2016,Applications Consultancy,Development - Planning & Local Authority Liaison,Scisys Uk Ltd,7293,364.1
"Department for Business, Energy and Industrial Strategy",The Coal Authority,10/11/2016,Applications Consultancy,Development - Planning & Local Authority Liaison,Scisys Uk Ltd,7293,132.6
"Department for Business, Energy and Industrial Strategy",The Coal Authority,10/11/2016,Applications Consultancy,Development - Planning & Local Authority Liaison,Scisys Uk Ltd,7293,46.21
"Department for Business, Energy and Industrial Strategy",The Coal Authority,29/09/2016,Consultancy - Town Planning,Development - Planning & Local Authority Liaison,Anthony Northcote Planning,6547,2011.75
"Department for Business, Energy and Industrial Strategy",The Coal Authority,20/10/2016,Consultancy - Town Planning,Development - Planning & Local Authority Liaison,Anthony Northcote Planning,6546,1609.4
"Department for Business, Energy and Industrial Strategy",The Coal Authority,10/11/2016,CY - Intangible IT - Additions,Development - Planning & Local Authority Liaison,Scisys Uk Ltd,7293,3622.21
"Department for Business, Energy and Industrial Strategy",The Coal Authority,03/10/2016,Incidentals,Development - Planning & Local Authority Liaison,RBS GPC Sept 2016,7288,10
"Department for Business, Energy and Industrial Strategy",The Coal Authority,10/11/2016,Requests For Change,Development - Planning & Local Authority Liaison,Scisys Uk Ltd,7293,153.14
"Department for Business, Energy and Industrial Strategy",The Coal Authority,10/11/2016,Requests For Change,Development - Planning & Local Authority Liaison,Scisys Uk Ltd,7293,336.41
"Department for Business, Energy and Industrial Strategy",The Coal Authority,07/12/2016,Software Support & Maintenance - On Premise,Development - Planning & Local Authority Liaison,6845 NERC,7612,14582.48
"Department for Business, Energy and Industrial Strategy",The Coal Authority,10/11/2016,Software Support & Maintenance - On Premise,Development - Planning & Local Authority Liaison,Scisys Uk Ltd,7293,1653.43
"Department for Business, Energy and Industrial Strategy",The Coal Authority,10/11/2016,Applications Consultancy,Development - Property Management,Scisys Uk Ltd,7293,46.21
"Department for Business, Energy and Industrial Strategy",The Coal Authority,10/11/2016,Applications Consultancy,Development - Property Management,Scisys Uk Ltd,7293,364.1
"Department for Business, Energy and Industrial Strategy",The Coal Authority,10/11/2016,Applications Consultancy,Development - Property Management,Scisys Uk Ltd,7293,132.6
"Department for Business, Energy and Industrial Strategy",The Coal Authority,31/10/2016,Closed Colliery Site Restoration,Development - Property Management,Crimefighter Alarms Ltd,6882,1882.1
"Department for Business, Energy and Industrial Strategy",The Coal Authority,31/10/2016,Closed Colliery Site Restoration,Development - Property Management,Ovenden Plant Hire Limited,6833,30.86
"Department for Business, Energy and Industrial Strategy",The Coal Authority,14/11/2016,Consultancy - Property Management,Development - Property Management,Savills (Uk) Ltd,7332,1000
"Department for Business, Energy and Industrial Strategy",The Coal Authority,10/11/2016,CY - Intangible IT - Additions,Development - Property Management,Scisys Uk Ltd,7293,3622.21
"Department for Business, Energy and Industrial Strategy",The Coal Authority,03/10/2016,Incidentals,Development - Property Management,RBS GPC Sept 2016,7288,36.25
"Department for Business, Energy and Industrial Strategy",The Coal Authority,02/11/2016,Legal - General,Development - Property Management,Freeths LLP,6565,1506
"Department for Business, Energy and Industrial Strategy",The Coal Authority,21/10/2016,Legal - Sales,Development - Property Management,Anderson Strathern,6926,13
"Department for Business, Energy and Industrial Strategy",The Coal Authority,21/10/2016,Legal - Sales,Development - Property Management,Anderson Strathern,6926,403
"Department for Business, Energy and Industrial Strategy",The Coal Authority,31/10/2016,Other Contractor Costs,Development - Property Management,Jmc Engineering Uk Ltd,6861,248.95
"Department for Business, Energy and Industrial Strategy",The Coal Authority,31/10/2016,Other Contractor Costs,Development - Property Management,Jmc Engineering Uk Ltd,6862,1590.6
"Department for Business, Energy and Industrial Strategy",The Coal Authority,31/10/2016,Property Site Maintenance,Development - Property Management,Alliance Contracting Solutions Ltd,7131,12074.98
"Department for Business, Energy and Industrial Strategy",The Coal Authority,25/11/2016,Property Site Maintenance,Development - Property Management,Alliance Contracting Solutions Ltd,7277,629.38
"Department for Business, Energy and Industrial Strategy",The Coal Authority,10/11/2016,Requests For Change,Development - Property Management,Scisys Uk Ltd,7293,336.41
"Department for Business, Energy and Industrial Strategy",The Coal Authority,10/11/2016,Requests For Change,Development - Property Management,Scisys Uk Ltd,7293,153.14
"Department for Business, Energy and Industrial Strategy",The Coal Authority,10/11/2016,Software Support & Maintenance - On Premise,Development - Property Management,Scisys Uk Ltd,7293,1653.43
"Department for Business, Energy and Industrial Strategy",The Coal Authority,03/10/2016,Subsistence Allowances,Development - Property Management,RBS GPC Sept 2016,7288,16.93
"Department for Business, Energy and Industrial Strategy",The Coal Authority,03/10/2016,Subsistence Allowances,Development - Property Management,RBS GPC Sept 2016,7288,79.03
"Department for Business, Energy and Industrial Strategy",The Coal Authority,03/10/2016,Training & Education,Development - Property Management,RBS GPC Sept 2016,7288,186
"Department for Business, Energy and Industrial Strategy",The Coal Authority,01/11/2016,CY - Minewater Scheme - Additions,Environment - Coal Mine Build,Bentley Systems (Uk) Ltd,7091,2408.21
"Department for Business, Energy and Industrial Strategy",The Coal Authority,14/11/2016,CY - Minewater Scheme - Additions,Environment - Coal Mine Build,Mott Macdonald Ltd,7235,383
"Department for Business, Energy and Industrial Strategy",The Coal Authority,28/11/2016,CY - Subsidence Pumping - Additions,Environment - Coal Mine Build,Northern Powergrid (Yorkshire) Plc,7316,76908.93
"Department for Business, Energy and Industrial Strategy",The Coal Authority,21/10/2016,Legal - General,Environment - Coal Mine Build,Anderson Strathern,6926,26
"Department for Business, Energy and Industrial Strategy",The Coal Authority,08/11/2016,Legal - General,Environment - Coal Mine Build,Dla Piper Uk Llp,7322,9060.94
"Department for Business, Energy and Industrial Strategy",The Coal Authority,31/10/2016,Legal - General,Environment - Coal Mine Build,Walker Morris,6952,47.7
"Department for Business, Energy and Industrial Strategy",The Coal Authority,31/10/2016,Legal - General,Environment - Coal Mine Build,Walker Morris,6952,23
"Department for Business, Energy and Industrial Strategy",The Coal Authority,31/10/2016,Legal - General,Environment - Coal Mine Build,Walker Morris,6952,46
"Department for Business, Energy and Industrial Strategy",The Coal Authority,31/10/2016,Legal - General,Environment - Coal Mine Build,Walker Morris,6952,25.8
"Department for Business, Energy and Industrial Strategy",The Coal Authority,27/10/2016,Minewater Land Agents (Acquisitions),Environment - Coal Mine Build,6464-RG & RB Williams,6687,500
"Department for Business, Energy and Industrial Strategy",The Coal Authority,04/10/2016,Temporary Contractors,Environment - Coal Mine Build,Conrad Consulting,7158,1840
"Department for Business, Energy and Industrial Strategy",The Coal Authority,08/11/2016,Temporary Contractors,Environment - Coal Mine Build,Conrad Consulting,7159,1840
"Department for Business, Energy and Industrial Strategy",The Coal Authority,15/11/2016,Temporary Contractors,Environment - Coal Mine Build,Conrad Consulting,6993,1840
"Department for Business, Energy and Industrial Strategy",The Coal Authority,28/10/2016,Temporary Contractors,Environment - Coal Mine Build,Key Personnel Solutions Ltd,6920,2063.25
"Department for Business, Energy and Industrial Strategy",The Coal Authority,11/11/2016,Temporary Contractors,Environment - Coal Mine Build,Key Personnel Solutions Ltd,7164,2063.25
"Department for Business, Energy and Industrial Strategy",The Coal Authority,11/11/2016,Temporary Contractors,Environment - Coal Mine Build,Key Personnel Solutions Ltd,7164,2063.25
"Department for Business, Energy and Industrial Strategy",The Coal Authority,06/12/2016,Training & Education,Environment - Coal Mine Build,6342 FAVERSHAM HOUSE,7563,-415
"Department for Business, Energy and Industrial Strategy",The Coal Authority,07/11/2016,Training & Education,Environment - Coal Mine Build,Thomas Telford Training,7174,1545
"Department for Business, Energy and Industrial Strategy",The Coal Authority,20/10/2016,Business Meetings,Environment - Contract Management,Oxford Innovation Ltd,6817,109.75
"Department for Business, Energy and Industrial Strategy",The Coal Authority,06/12/2016,CY - Subsidence Pumping - Additions,Environment - Contract Management,4387 NAL PLANT,7563,71390
"Department for Business, Energy and Industrial Strategy",The Coal Authority,06/12/2016,CY - Subsidence Pumping - Additions,Environment - Contract Management,4387 NAL PLANT,7563,-71390
"Department for Business, Energy and Industrial Strategy",The Coal Authority,06/12/2016,CY - Subsidence Pumping - Additions,Environment - Contract Management,5629 NAL PLANT,7563,82743
"Department for Business, Energy and Industrial Strategy",The Coal Authority,09/11/2016,CY - Subsidence Pumping - Additions,Environment - Contract Management,Nal Plant Limited,7320,65500
"Department for Business, Energy and Industrial Strategy",The Coal Authority,26/10/2016,Fuel (Vehicle),Environment - Contract Management,Allstar Business Solutions Ltd,7121,62.39
"Department for Business, Energy and Industrial Strategy",The Coal Authority,02/11/2016,Fuel (Vehicle),Environment - Contract Management,Allstar Business Solutions Ltd,7126,101.44
"Department for Business, Energy and Industrial Strategy",The Coal Authority,01/11/2016,Minewater Consultancy - Operational Sites,Environment - Contract Management,Carter Jonas,7217,2500
"Department for Business, Energy and Industrial Strategy",The Coal Authority,01/10/2016,Minewater Contractor Maint. Visits - Ops Site,Environment - Contract Management,National Coal Mining Museum,7044,1654.56
"Department for Business, Energy and Industrial Strategy",The Coal Authority,25/10/2016,Minewater Contractor Maint. Visits - Ops Site,Environment - Contract Management,National Coal Mining Museum,7045,3420
"Department for Business, Energy and Industrial Strategy",The Coal Authority,25/10/2016,Minewater Contractor Maint. Visits - Ops Site,Environment - Contract Management,National Coal Mining Museum,7160,1269.23
"Department for Business, Energy and Industrial Strategy",The Coal Authority,06/11/2016,Minewater Land Agents (Acquisitions),Environment - Contract Management,Mark N Carey Limited,7261,65
"Department for Business, Energy and Industrial Strategy",The Coal Authority,06/11/2016,Minewater Land Agents (Acquisitions),Environment - Contract Management,Mark N Carey Limited,7266,799.5
"Department for Business, Energy and Industrial Strategy",The Coal Authority,06/11/2016,Minewater Land Agents (Acquisitions),Environment - Contract Management,Mark N Carey Limited,7267,149.5
"Department for Business, Energy and Industrial Strategy",The Coal Authority,06/11/2016,Minewater Land Option / Access Payments,Environment - Contract Management,Mark N Carey Limited,7274,204.5
"Department for Business, Energy and Industrial Strategy",The Coal Authority,02/11/2016,Minewater Power Costs,Environment - Contract Management,British Gas Business,6956,805.6
"Department for Business, Energy and Industrial Strategy",The Coal Authority,01/11/2016,Minewater Power Costs,Environment - Contract Management,Edf Energy,7300,7563.6
"Department for Business, Energy and Industrial Strategy",The Coal Authority,03/11/2016,Minewater Power Costs,Environment - Contract Management,Edf Energy,7298,9835.84
"Department for Business, Energy and Industrial Strategy",The Coal Authority,03/11/2016,Minewater Power Costs,Environment - Contract Management,Edf Energy,7298,617.28
"Department for Business, Energy and Industrial Strategy",The Coal Authority,03/11/2016,Minewater Power Costs,Environment - Contract Management,Edf Energy,7298,5538.67
"Department for Business, Energy and Industrial Strategy",The Coal Authority,03/11/2016,Minewater Power Costs,Environment - Contract Management,Edf Energy,7298,1702.03
"Department for Business, Energy and Industrial Strategy",The Coal Authority,03/11/2016,Minewater Power Costs,Environment - Contract Management,Edf Energy,7298,1172.37
"Department for Business, Energy and Industrial Strategy",The Coal Authority,03/11/2016,Minewater Power Costs,Environment - Contract Management,Edf Energy,7298,3621.44
"Department for Business, Energy and Industrial Strategy",The Coal Authority,03/11/2016,Minewater Power Costs,Environment - Contract Management,Edf Energy,7298,14495.13
"Department for Business, Energy and Industrial Strategy",The Coal Authority,03/11/2016,Minewater Power Costs,Environment - Contract Management,Edf Energy,7298,9225.92
"Department for Business, Energy and Industrial Strategy",The Coal Authority,03/11/2016,Minewater Power Costs,Environment - Contract Management,Edf Energy,7298,9386.86
"Department for Business, Energy and Industrial Strategy",The Coal Authority,03/11/2016,Minewater Power Costs,Environment - Contract Management,Edf Energy,7298,2247.59
"Department for Business, Energy and Industrial Strategy",The Coal Authority,03/11/2016,Minewater Power Costs,Environment - Contract Management,Edf Energy,7298,1201.88
"Department for Business, Energy and Industrial Strategy",The Coal Authority,03/11/2016,Minewater Power Costs,Environment - Contract Management,Edf Energy,7298,14718.95
"Department for Business, Energy and Industrial Strategy",The Coal Authority,03/11/2016,Minewater Power Costs,Environment - Contract Management,Edf Energy,7298,6226.1
"Department for Business, Energy and Industrial Strategy",The Coal Authority,03/11/2016,Minewater Power Costs,Environment - Contract Management,Edf Energy,7298,13622.2
"Department for Business, Energy and Industrial Strategy",The Coal Authority,03/11/2016,Minewater Power Costs,Environment - Contract Management,Edf Energy,7298,3194.13
"Department for Business, Energy and Industrial Strategy",The Coal Authority,03/11/2016,Minewater Power Costs,Environment - Contract Management,Edf Energy,7298,5648.11
"Department for Business, Energy and Industrial Strategy",The Coal Authority,03/11/2016,Minewater Power Costs,Environment - Contract Management,Edf Energy,7298,6873.04
"Department for Business, Energy and Industrial Strategy",The Coal Authority,03/11/2016,Minewater Power Costs,Environment - Contract Management,Edf Energy,7298,10550.17
"Department for Business, Energy and Industrial Strategy",The Coal Authority,03/11/2016,Minewater Power Costs,Environment - Contract Management,Edf Energy,7298,14539.46
"Department for Business, Energy and Industrial Strategy",The Coal Authority,02/11/2016,Minewater Power Costs,Environment - Contract Management,GA Blagg & Son,6583,716.82
"Department for Business, Energy and Industrial Strategy",The Coal Authority,06/12/2016,Minewater Rates,Environment - Contract Management,5464 WIGAN COUNCIL,7563,3388
"Department for Business, Energy and Industrial Strategy",The Coal Authority,06/12/2016,Minewater Rates,Environment - Contract Management,5464 WIGAN COUNCIL,7563,-3388
"Department for Business, Energy and Industrial Strategy",The Coal Authority,06/12/2016,Minewater Rates,Environment - Contract Management,5465 WIGAN COUNCIL,7563,3360
"Department for Business, Energy and Industrial Strategy",The Coal Authority,06/12/2016,Minewater Rates,Environment - Contract Management,5465 WIGAN COUNCIL,7563,-3360
"Department for Business, Energy and Industrial Strategy",The Coal Authority,19/10/2016,Minewater Remediation,Environment - Contract Management,Geoterra,6986,6750
"Department for Business, Energy and Industrial Strategy",The Coal Authority,28/11/2016,Minewater Rent,Environment - Contract Management,Douglas & Angus Estates,7036,2393
"Department for Business, Energy and Industrial Strategy",The Coal Authority,02/11/2016,Minewater Rent,Environment - Contract Management,Rental Payment,6577,15000
"Department for Business, Energy and Industrial Strategy",The Coal Authority,02/11/2016,Minewater Rent,Environment - Contract Management,Upper Haugh Cricket Club,6574,200
"Department for Business, Energy and Industrial Strategy",The Coal Authority,18/10/2016,Minewater Sampling - Operational Sites,Environment - Contract Management,Environmental Scientifics Grp,7013,35
"Department for Business, Energy and Industrial Strategy",The Coal Authority,02/11/2016,Minewater Telecoms & Telemetry,Environment - Contract Management,O2 (Uk) Limited,6834,12.5
"Department for Business, Energy and Industrial Strategy",The Coal Authority,02/11/2016,Minewater Telecoms & Telemetry,Environment - Contract Management,O2 (Uk) Limited,6835,12.5
"Department for Business, Energy and Industrial Strategy",The Coal Authority,02/11/2016,Minewater Telecoms & Telemetry,Environment - Contract Management,O2 (Uk) Limited,6836,12.5
"Department for Business, Energy and Industrial Strategy",The Coal Authority,15/10/2016,Minewater Telecoms & Telemetry,Environment - Contract Management,Vodafone Limited (Corporate),6557,600.74
"Department for Business, Energy and Industrial Strategy",The Coal Authority,11/10/2016,Minewater Water Charges,Environment - Contract Management,Business Stream,6550,5881.85
"Department for Business, Energy and Industrial Strategy",The Coal Authority,31/10/2016,Stationery,Environment - Contract Management,Ace Of Mansfield Ltd,7101,37.3
"Department for Business, Energy and Industrial Strategy",The Coal Authority,31/10/2016,Stationery,Environment - Contract Management,Ace Of Mansfield Ltd,7101,8.5
"Department for Business, Energy and Industrial Strategy",The Coal Authority,31/10/2016,Stationery,Environment - Contract Management,Ace Of Mansfield Ltd,7101,8.5
"Department for Business, Energy and Industrial Strategy",The Coal Authority,31/10/2016,Stationery,Environment - Contract Management,Ace Of Mansfield Ltd,7101,8.5
"Department for Business, Energy and Industrial Strategy",The Coal Authority,31/10/2016,Stationery,Environment - Contract Management,Ace Of Mansfield Ltd,7101,8.5
"Department for Business, Energy and Industrial Strategy",The Coal Authority,31/10/2016,Stationery,Environment - Contract Management,Ace Of Mansfield Ltd,7101,8.5
"Department for Business, Energy and Industrial Strategy",The Coal Authority,31/10/2016,Stationery,Environment - Contract Management,Ace Of Mansfield Ltd,7101,8.5
"Department for Business, Energy and Industrial Strategy",The Coal Authority,06/12/2016,Subsidence Pumping Maintenance - Other,Environment - Contract Management,5629 NAL PLANT,7563,-82743
"Department for Business, Energy and Industrial Strategy",The Coal Authority,31/10/2016,Subsidence Pumping Maintenance - Other,Environment - Contract Management,Briggs Land Drainage & Excavations Ltd,7328,2049.43
"Department for Business, Energy and Industrial Strategy",The Coal Authority,03/11/2016,Subsidence Pumping Maintenance - Other,Environment - Contract Management,Jeremy Benn Associates Ltd,6954,15370
"Department for Business, Energy and Industrial Strategy",The Coal Authority,13/10/2016,Subsidence Pumping Maintenance - Other,Environment - Contract Management,Ouse&Derwnt Intern Drainge Brd,6818,3497.6
"Department for Business, Energy and Industrial Strategy",The Coal Authority,13/10/2016,Subsidence Pumping Maintenance - Other,Environment - Contract Management,Ouse&Derwnt Intern Drainge Brd,6819,1157.55
"Department for Business, Energy and Industrial Strategy",The Coal Authority,13/10/2016,Subsidence Pumping Maintenance - Other,Environment - Contract Management,Ouse&Derwnt Intern Drainge Brd,6821,221.8
"Department for Business, Energy and Industrial Strategy",The Coal Authority,13/10/2016,Subsidence Pumping Maintenance - Other,Environment - Contract Management,Ouse&Derwnt Intern Drainge Brd,6828,16412
"Department for Business, Energy and Industrial Strategy",The Coal Authority,04/11/2016,Subsidence Pumping Maintenance - Power,Environment - Contract Management,Black Drain Drainage Board,7140,46.99
"Department for Business, Energy and Industrial Strategy",The Coal Authority,03/11/2016,Subsidence Pumping Maintenance - Power,Environment - Contract Management,Edf Energy,7298,133.08
"Department for Business, Energy and Industrial Strategy",The Coal Authority,03/11/2016,Subsidence Pumping Maintenance - Power,Environment - Contract Management,Edf Energy,7298,141.52
"Department for Business, Energy and Industrial Strategy",The Coal Authority,03/11/2016,Subsidence Pumping Maintenance - Power,Environment - Contract Management,Edf Energy,7298,730.24
"Department for Business, Energy and Industrial Strategy",The Coal Authority,03/11/2016,Subsidence Pumping Maintenance - Power,Environment - Contract Management,Edf Energy,7298,340.09
"Department for Business, Energy and Industrial Strategy",The Coal Authority,03/11/2016,Subsidence Pumping Maintenance - Power,Environment - Contract Management,Edf Energy,7298,341.8
"Department for Business, Energy and Industrial Strategy",The Coal Authority,09/10/2016,Subsidence Pumping Maintenance - Power,Environment - Contract Management,Methley Estates (Holdings) Ltd,6552,253.58
"Department for Business, Energy and Industrial Strategy",The Coal Authority,13/10/2016,Subsidence Pumping Maintenance - Power,Environment - Contract Management,Ouse&Derwnt Intern Drainge Brd,6818,639.43
"Department for Business, Energy and Industrial Strategy",The Coal Authority,13/10/2016,Subsidence Pumping Maintenance - Power,Environment - Contract Management,Ouse&Derwnt Intern Drainge Brd,6819,889.81
"Department for Business, Energy and Industrial Strategy",The Coal Authority,13/10/2016,Subsidence Pumping Maintenance - Power,Environment - Contract Management,Ouse&Derwnt Intern Drainge Brd,6820,383.04
"Department for Business, Energy and Industrial Strategy",The Coal Authority,13/10/2016,Subsidence Pumping Maintenance - Power,Environment - Contract Management,Ouse&Derwnt Intern Drainge Brd,6820,263.72
"Department for Business, Energy and Industrial Strategy",The Coal Authority,13/10/2016,Subsidence Pumping Maintenance - Power,Environment - Contract Management,Ouse&Derwnt Intern Drainge Brd,6821,178.76
"Department for Business, Energy and Industrial Strategy",The Coal Authority,13/10/2016,Subsidence Pumping Maintenance - Power,Environment - Contract Management,Ouse&Derwnt Intern Drainge Brd,6823,483.49
"Department for Business, Energy and Industrial Strategy",The Coal Authority,13/10/2016,Subsidence Pumping Maintenance - Power,Environment - Contract Management,Ouse&Derwnt Intern Drainge Brd,6823,286.25
"Department for Business, Energy and Industrial Strategy",The Coal Authority,13/10/2016,Subsidence Pumping Maintenance - Power,Environment - Contract Management,Ouse&Derwnt Intern Drainge Brd,6824,570.7
"Department for Business, Energy and Industrial Strategy",The Coal Authority,13/10/2016,Subsidence Pumping Maintenance - Power,Environment - Contract Management,Ouse&Derwnt Intern Drainge Brd,6824,517.15
"Department for Business, Energy and Industrial Strategy",The Coal Authority,13/10/2016,Subsidence Pumping Maintenance - Power,Environment - Contract Management,Ouse&Derwnt Intern Drainge Brd,6828,1303.65
"Department for Business, Energy and Industrial Strategy",The Coal Authority,03/10/2016,Subsistence Allowances,Environment - Contract Management,RBS GPC Sept 2016,7288,3.43
"Department for Business, Energy and Industrial Strategy",The Coal Authority,01/11/2016,Temporary Contractors,Environment - Contract Management,Huxley Associates,7033,2240
"Department for Business, Energy and Industrial Strategy",The Coal Authority,07/11/2016,Temporary Contractors,Environment - Contract Management,Huxley Associates,7030,2240
"Department for Business, Energy and Industrial Strategy",The Coal Authority,14/11/2016,Temporary Contractors,Environment - Contract Management,Huxley Associates,6981,2240
"Department for Business, Energy and Industrial Strategy",The Coal Authority,06/12/2016,CY - Non-coal Minewater - Additions,Environment - DEFRA - EA Programme,5961 JN BENTLEY,7563,768.31
"Department for Business, Energy and Industrial Strategy",The Coal Authority,06/12/2016,Minewater Feasibility / Scoping,Environment - DEFRA - EA Programme,5544 AECOM,7563,-25013.61
"Department for Business, Energy and Industrial Strategy",The Coal Authority,27/10/2016,Minewater Feasibility / Scoping,Environment - DEFRA - EA Programme,Atkins Limited,6918,3989.6
"Department for Business, Energy and Industrial Strategy",The Coal Authority,25/10/2016,Minewater Feasibility / Scoping,Environment - DEFRA - EA Programme,Environmental Scientifics Grp,6997,120
"Department for Business, Energy and Industrial Strategy",The Coal Authority,06/12/2016,Minewater Power Costs,Environment - DEFRA - EA Programme,7298 EDF ENERGY,7563,2381.59
"Department for Business, Energy and Industrial Strategy",The Coal Authority,03/11/2016,Minewater Power Costs,Environment - DEFRA - EA Programme,Edf Energy,7298,20279.25
"Department for Business, Energy and Industrial Strategy",The Coal Authority,15/11/2016,Research & Development,Environment - DEFRA - EA Programme,Newcastle University,7170,23326
"Department for Business, Energy and Industrial Strategy",The Coal Authority,06/12/2016,Subsidence Pumping Maintenance - Power,Environment - DEFRA - EA Programme,7298 EDF ENERGY,7563,-2381.59
"Department for Business, Energy and Industrial Strategy",The Coal Authority,03/11/2016,Subsidence Pumping Maintenance - Power,Environment - DEFRA - EA Programme,Edf Energy,7298,2381.59
"Department for Business, Energy and Industrial Strategy",The Coal Authority,03/10/2016,Subsistence Allowances,Environment - DEFRA - EA Programme,RBS GPC Sept 2016,7288,6.1
"Department for Business, Energy and Industrial Strategy",The Coal Authority,03/10/2016,Subsistence Allowances,Environment - DEFRA - EA Programme,RBS GPC Sept 2016,7288,11.42
"Department for Business, Energy and Industrial Strategy",The Coal Authority,06/12/2016,CY - Non-coal Minewater - Additions,Environment - DEFRA - LEP Programme,5694 JN BENTLEY,7563,519.59
"Department for Business, Energy and Industrial Strategy",The Coal Authority,06/12/2016,CY - Non-coal Minewater - Additions,Environment - DEFRA - LEP Programme,5694 JN BENTLEY,7563,-519.59
"Department for Business, Energy and Industrial Strategy",The Coal Authority,06/12/2016,CY - Non-coal Minewater - Additions,Environment - DEFRA - LEP Programme,5695 JN BENTLEY,7563,2659.98
"Department for Business, Energy and Industrial Strategy",The Coal Authority,06/12/2016,CY - Non-coal Minewater - Additions,Environment - DEFRA - LEP Programme,5695 JN BENTLEY,7563,-2659.98
"Department for Business, Energy and Industrial Strategy",The Coal Authority,06/12/2016,CY - Non-coal Minewater - Additions,Environment - DEFRA - LEP Programme,5961 JN BENTLEY,7563,-768.31
"Department for Business, Energy and Industrial Strategy",The Coal Authority,06/12/2016,CY - Non-coal Minewater - Additions,Environment - DEFRA - LEP Programme,6426 JN BENTLEY,7563,604.39
"Department for Business, Energy and Industrial Strategy",The Coal Authority,06/12/2016,CY - Non-coal Minewater - Additions,Environment - DEFRA - LEP Programme,6426 JN BENTLEY,7563,-604.39
"Department for Business, Energy and Industrial Strategy",The Coal Authority,01/11/2016,CY - Non-coal Minewater - Additions,Environment - DEFRA - LEP Programme,Bentley Systems (Uk) Ltd,7092,21604.84
"Department for Business, Energy and Industrial Strategy",The Coal Authority,03/10/2016,CY - Non-coal Minewater - Additions,Environment - DEFRA - LEP Programme,RBS GPC Sept 2016,7288,50
"Department for Business, Energy and Industrial Strategy",The Coal Authority,06/12/2016,Minewater Feasibility / Scoping,Environment - DEFRA - LEP Programme,5544 AECOM,7563,25013.61
"Department for Business, Energy and Industrial Strategy",The Coal Authority,30/11/2016,Minewater Feasibility / Scoping,Environment - DEFRA - LEP Programme,Aecom Infrastructure & Env,7324,28045.5
"Department for Business, Energy and Industrial Strategy",The Coal Authority,03/10/2016,Minewater Feasibility / Scoping,Environment - DEFRA - LEP Programme,RBS GPC Sept 2016,7288,119.2
"Department for Business, Energy and Industrial Strategy",The Coal Authority,02/09/2016,Minewater Feasibility / Scoping,Environment - DEFRA - LEP Programme,Wilson Sherriff Ltd,6794,8379
"Department for Business, Energy and Industrial Strategy",The Coal Authority,06/11/2016,Minewater Land Agents (Acquisitions),Environment - DEFRA - LEP Programme,Mark N Carey Limited,7268,552.5
"Department for Business, Energy and Industrial Strategy",The Coal Authority,06/11/2016,Minewater Land Agents (Acquisitions),Environment - DEFRA - LEP Programme,Mark N Carey Limited,7269,65
"Department for Business, Energy and Industrial Strategy",The Coal Authority,06/11/2016,Minewater Land Agents (Acquisitions),Environment - DEFRA - LEP Programme,Mark N Carey Limited,7270,65
"Department for Business, Energy and Industrial Strategy",The Coal Authority,06/11/2016,Minewater Land Agents (Acquisitions),Environment - DEFRA - LEP Programme,Mark N Carey Limited,7262,539.5
"Department for Business, Energy and Industrial Strategy",The Coal Authority,06/11/2016,Minewater Land Agents (Acquisitions),Environment - DEFRA - LEP Programme,Mark N Carey Limited,7263,338
"Department for Business, Energy and Industrial Strategy",The Coal Authority,06/11/2016,Minewater Land Agents (Acquisitions),Environment - DEFRA - LEP Programme,Mark N Carey Limited,7264,1059.5
"Department for Business, Energy and Industrial Strategy",The Coal Authority,06/11/2016,Minewater Land Agents (Acquisitions),Environment - DEFRA - LEP Programme,Mark N Carey Limited,7265,1209
"Department for Business, Energy and Industrial Strategy",The Coal Authority,06/11/2016,Minewater Land Agents (Acquisitions),Environment - DEFRA - LEP Programme,Mark N Carey Limited,7260,65
"Department for Business, Energy and Industrial Strategy",The Coal Authority,29/10/2016,Software Support & Maintenance - SaaS,Environment - DEFRA - LEP Programme,Aconex Services Limited,6906,155
"Department for Business, Energy and Industrial Strategy",The Coal Authority,03/11/2016,Innovation Costs,Environment - Innovation Concept & Feasibility,H R Wallingford,6976,2550
"Department for Business, Energy and Industrial Strategy",The Coal Authority,31/10/2016,Innovation Costs,Environment - Innovation Programme Delivery,4Recycling Ltd,7137,3950
"Department for Business, Energy and Industrial Strategy",The Coal Authority,31/10/2016,Innovation Costs,Environment - Innovation Programme Delivery,4Recycling Ltd,7138,3800
"Department for Business, Energy and Industrial Strategy",The Coal Authority,28/11/2016,Innovation Costs,Environment - Innovation Programme Delivery,Assign ZC code to 4R inv Jnl 7137,7220,3950
"Department for Business, Energy and Industrial Strategy",The Coal Authority,28/11/2016,Innovation Costs,Environment - Innovation Programme Delivery,Assign ZC code to 4R inv Jnl 7137,7220,-3950
"Department for Business, Energy and Industrial Strategy",The Coal Authority,28/11/2016,Innovation Costs,Environment - Innovation Programme Delivery,Assign ZC code to 4R inv Jnl 7138,7220,3800
"Department for Business, Energy and Industrial Strategy",The Coal Authority,28/11/2016,Innovation Costs,Environment - Innovation Programme Delivery,Assign ZC code to 4R inv Jnl 7138,7220,-3800
"Department for Business, Energy and Industrial Strategy",The Coal Authority,01/11/2016,Innovation Costs,Environment - Innovation Programme Delivery,Carter Jonas,6883,2500
"Department for Business, Energy and Industrial Strategy",The Coal Authority,03/10/2016,Innovation Costs,Environment - Innovation Programme Delivery,RBS GPC Sept 2016,7288,120.26
"Department for Business, Energy and Industrial Strategy",The Coal Authority,28/11/2016,Innovation Costs,Environment - Innovation Programme Delivery,Reverse incorrectly coded invoice,7222,-2500
"Department for Business, Energy and Industrial Strategy",The Coal Authority,02/11/2016,Innovation Costs,Environment - Innovation Programme Delivery,Rossendale Borough Council,6566,385
"Department for Business, Energy and Industrial Strategy",The Coal Authority,10/11/2016,Research & Development,Environment - Innovation Programme Delivery,2H Water Technologies,7014,800.45
"Department for Business, Energy and Industrial Strategy",The Coal Authority,10/10/2016,Research & Development,Environment - Innovation Programme Delivery,Environmental Scientifics Grp,7257,63.66
"Department for Business, Energy and Industrial Strategy",The Coal Authority,12/10/2016,Research & Development,Environment - Innovation Programme Delivery,Environmental Scientifics Grp,7001,520
"Department for Business, Energy and Industrial Strategy",The Coal Authority,19/10/2016,Research & Development,Environment - Innovation Programme Delivery,Environmental Scientifics Grp,7012,328.65
"Department for Business, Energy and Industrial Strategy",The Coal Authority,31/10/2016,Research & Development,Environment - Innovation Programme Delivery,Environmental Scientifics Grp,7004,1386
"Department for Business, Energy and Industrial Strategy",The Coal Authority,31/10/2016,Research & Development,Environment - Innovation Programme Delivery,Environmental Scientifics Grp,7007,378.45
"Department for Business, Energy and Industrial Strategy",The Coal Authority,31/10/2016,Research & Development,Environment - Innovation Programme Delivery,Environmental Scientifics Grp,7008,123.24
"Department for Business, Energy and Industrial Strategy",The Coal Authority,08/11/2016,Research & Development,Environment - Innovation Programme Delivery,Environmental Scientifics Grp,7006,123.24
"Department for Business, Energy and Industrial Strategy",The Coal Authority,09/11/2016,Research & Development,Environment - Innovation Programme Delivery,Environmental Scientifics Grp,7000,277.29
"Department for Business, Energy and Industrial Strategy",The Coal Authority,03/10/2016,Subsistence Allowances,Environment - Innovation Programme Delivery,RBS GPC Sept 2016,7288,3.43
"Department for Business, Energy and Industrial Strategy",The Coal Authority,31/10/2016,Temporary Contractors,Environment - Innovation Programme Delivery,Huxley Associates,6864,2160
"Department for Business, Energy and Industrial Strategy",The Coal Authority,08/11/2016,Temporary Contractors,Environment - Innovation Programme Delivery,Huxley Associates,7031,2160
"Department for Business, Energy and Industrial Strategy",The Coal Authority,14/11/2016,Temporary Contractors,Environment - Innovation Programme Delivery,Huxley Associates,6979,2160
"Department for Business, Energy and Industrial Strategy",The Coal Authority,14/11/2016,Temporary Contractors,Environment - Innovation Programme Delivery,Huxley Associates,6980,1880
"Department for Business, Energy and Industrial Strategy",The Coal Authority,17/11/2016,Temporary Contractors,Environment - Innovation Programme Delivery,Huxley Associates,7029,95.97
"Department for Business, Energy and Industrial Strategy",The Coal Authority,06/12/2016,Training & Education,Environment - Innovation Programme Delivery,6342 FAVERSHAM HOUSE,7563,415
"Department for Business, Energy and Industrial Strategy",The Coal Authority,10/11/2016,Training & Education,Environment - Innovation Programme Delivery,Faversham House Ltd,6992,375
"Department for Business, Energy and Industrial Strategy",The Coal Authority,03/10/2016,Incidentals,Environment - Management,RBS GPC Sept 2016,7288,9.17
"Department for Business, Energy and Industrial Strategy",The Coal Authority,03/10/2016,Staff Events,Environment - Management,RBS GPC Sept 2016,7288,21.55
"Department for Business, Energy and Industrial Strategy",The Coal Authority,03/10/2016,Subsistence Allowances,Environment - Management,RBS GPC Sept 2016,7288,3.43
"Department for Business, Energy and Industrial Strategy",The Coal Authority,03/10/2016,Training & Education,Environment - Management,RBS GPC Sept 2016,7288,930.83
"Department for Business, Energy and Industrial Strategy",The Coal Authority,03/10/2016,Incidentals,Environment - Metal Mine Build,RBS GPC Sept 2016,7288,4.17
"Department for Business, Energy and Industrial Strategy",The Coal Authority,15/11/2016,Minewater Cost Benefit Analysis,Environment - Metal Mine Build,Risk & Policy Analysts Ltd,7171,6660
"Department for Business, Energy and Industrial Strategy",The Coal Authority,03/10/2016,Research & Development,Environment - Metal Mine Build,RBS GPC Sept 2016,7288,343
"Department for Business, Energy and Industrial Strategy",The Coal Authority,03/10/2016,Subsidence - Contractor & Claim Costs,Environment - Metal Mine Build,RBS GPC Sept 2016,7288,5.35
"Department for Business, Energy and Industrial Strategy",The Coal Authority,03/10/2016,Subsistence Allowances,Environment - Metal Mine Build,RBS GPC Sept 2016,7288,58.98
"Department for Business, Energy and Industrial Strategy",The Coal Authority,03/10/2016,Subsistence Allowances,Environment - Metal Mine Build,RBS GPC Sept 2016,7288,20.54
"Department for Business, Energy and Industrial Strategy",The Coal Authority,07/11/2016,Training & Education,Environment - Metal Mine Build,Thomas Telford Training,7174,1545
"Department for Business, Energy and Industrial Strategy",The Coal Authority,09/09/2016,Business Meetings,Environment - Technical,IWA conference,7178,9.6
"Department for Business, Energy and Industrial Strategy",The Coal Authority,06/12/2016,CY - Minewater Scheme - Additions,Environment - Technical,4778 MOTT MACDONALD,7563,690.5
"Department for Business, Energy and Industrial Strategy",The Coal Authority,06/12/2016,CY - Minewater Scheme - Additions,Environment - Technical,4779 MOTT MACDONALD,7563,1425.5
"Department for Business, Energy and Industrial Strategy",The Coal Authority,14/11/2016,CY - Minewater Scheme - Additions,Environment - Technical,Aecom Infrastructure & Env,7090,505
"Department for Business, Energy and Industrial Strategy",The Coal Authority,09/09/2016,Fares - Public Transport,Environment - Technical,Staff Expenses Control,7178,17.79
"Department for Business, Energy and Industrial Strategy",The Coal Authority,09/09/2016,Fares - Public Transport,Environment - Technical,Staff Expenses Control,7179,18.65
"Department for Business, Energy and Industrial Strategy",The Coal Authority,31/10/2016,Legal - General,Environment - Technical,Walker Morris,6952,103.2
"Department for Business, Energy and Industrial Strategy",The Coal Authority,31/10/2016,Legal - General,Environment - Technical,Walker Morris,6952,172.5
"Department for Business, Energy and Industrial Strategy",The Coal Authority,31/10/2016,Legal - General,Environment - Technical,Walker Morris,6952,11.5
"Department for Business, Energy and Industrial Strategy",The Coal Authority,10/11/2016,Minewater Cost Benefit Analysis,Environment - Technical,Risk & Policy Analysts Ltd,6786,1957.5
"Department for Business, Energy and Industrial Strategy",The Coal Authority,06/12/2016,Minewater Feasibility / Scoping,Environment - Technical,4778 MOTT MACDONALD,7563,-690.5
"Department for Business, Energy and Industrial Strategy",The Coal Authority,06/12/2016,Minewater Feasibility / Scoping,Environment - Technical,4779 MOTT MACDONALD,7563,-1425.5
"Department for Business, Energy and Industrial Strategy",The Coal Authority,22/11/2016,Minewater Land Option / Access Payments,Environment - Technical,Compensation Payment,7065,407.5
"Department for Business, Energy and Industrial Strategy",The Coal Authority,22/11/2016,Minewater Land Option / Access Payments,Environment - Technical,Rental Payment,7056,385
"Department for Business, Energy and Industrial Strategy",The Coal Authority,22/11/2016,Minewater Land Option / Access Payments,Environment - Technical,Rental Payment,7057,385
"Department for Business, Energy and Industrial Strategy",The Coal Authority,12/10/2016,Minewater Sampling - 'Non-operational' Sites,Environment - Technical,Environmental Scientifics Grp,7002,16.06
"Department for Business, Energy and Industrial Strategy",The Coal Authority,12/10/2016,Research & Development,Environment - Technical,Environmental Scientifics Grp,7003,398.45
"Department for Business, Energy and Industrial Strategy",The Coal Authority,12/10/2016,Research & Development,Environment - Technical,Environmental Scientifics Grp,7009,514.08
"Department for Business, Energy and Industrial Strategy",The Coal Authority,09/11/2016,Research & Development,Environment - Technical,Mott Macdonald Ltd,7165,6116.41
"Department for Business, Energy and Industrial Strategy",The Coal Authority,03/10/2016,Research & Development,Environment - Technical,RBS GPC Sept 2016,7288,573.53
"Department for Business, Energy and Industrial Strategy",The Coal Authority,10/11/2016,Research & Development,Environment - Technical,The University of Sheffield,7176,5200
"Department for Business, Energy and Industrial Strategy",The Coal Authority,03/10/2016,Subsistence Allowances,Environment - Technical,RBS GPC Sept 2016,7288,28.32
"Department for Business, Energy and Industrial Strategy",The Coal Authority,03/10/2016,Subsistence Allowances,Environment - Technical,RBS GPC Sept 2016,7288,3.43
"Department for Business, Energy and Industrial Strategy",The Coal Authority,09/09/2016,Subsistence Allowances,Environment - Technical,Staff Expenses Control,7178,80.52
"Department for Business, Energy and Industrial Strategy",The Coal Authority,09/09/2016,Subsistence Allowances,Environment - Technical,Staff Expenses Control,7179,41.03
"Department for Business, Energy and Industrial Strategy",The Coal Authority,31/10/2016,Temporary Contractors,Environment - Technical,Huxley Associates,6865,1880
"Department for Business, Energy and Industrial Strategy",The Coal Authority,04/11/2016,Temporary Contractors,Environment - Technical,Huxley Associates,6866,1880
"Department for Business, Energy and Industrial Strategy",The Coal Authority,18/11/2016,Temporary Contractors,Environment - Technical,Huxley Associates,7032,1880
"Department for Business, Energy and Industrial Strategy",The Coal Authority,10/11/2016,Training & Education,Environment - Technical,Faversham House Ltd,6992,375
"Department for Business, Energy and Industrial Strategy",The Coal Authority,03/10/2016,Training & Education,Environment - Technical,RBS GPC Sept 2016,7288,565
"Department for Business, Energy and Industrial Strategy",The Coal Authority,03/10/2016,Business Entertainment / Hospitality,Executive,RBS GPC Sept 2016,7288,144.95
"Department for Business, Energy and Industrial Strategy",The Coal Authority,09/11/2016,Business Entertainment / Hospitality,Executive,Staff Expenses Control,6825,1.32
"Department for Business, Energy and Industrial Strategy",The Coal Authority,04/11/2016,Business Meetings,Executive,Eastwood Hall,6994,544
"Department for Business, Energy and Industrial Strategy",The Coal Authority,03/10/2016,Business Meetings,Executive,RBS GPC Sept 2016,7288,41.67
"Department for Business, Energy and Industrial Strategy",The Coal Authority,03/10/2016,Fares - Air,Executive,RBS GPC Sept 2016,7288,19
"Department for Business, Energy and Industrial Strategy",The Coal Authority,03/10/2016,Fares - Public Transport,Executive,RBS GPC Sept 2016,7288,8.4
"Department for Business, Energy and Industrial Strategy",The Coal Authority,03/10/2016,Incidentals,Executive,RBS GPC Sept 2016,7288,130.16
"Department for Business, Energy and Industrial Strategy",The Coal Authority,01/11/2016,Pit Closure Security Fund Draw Down,Executive,Hexgreave Estates Ltd,6867,200
"Department for Business, Energy and Industrial Strategy",The Coal Authority,03/10/2016,Staff Events,Executive,RBS GPC Sept 2016,7288,99.95
"Department for Business, Energy and Industrial Strategy",The Coal Authority,31/10/2016,Stationery,Executive,Ace Of Mansfield Ltd,7101,37.7
"Department for Business, Energy and Industrial Strategy",The Coal Authority,31/10/2016,Stationery,Executive,Ace Of Mansfield Ltd,7101,40.7
"Department for Business, Energy and Industrial Strategy",The Coal Authority,03/10/2016,Subsistence Allowances,Executive,RBS GPC Sept 2016,7288,86.85
"Department for Business, Energy and Industrial Strategy",The Coal Authority,09/11/2016,Business Entertainment / Hospitality,Facilities,5842-SP Foods Client Irr VAT,6825,23.11
"Department for Business, Energy and Industrial Strategy",The Coal Authority,01/10/2016,Business Entertainment / Hospitality,Facilities,S P Foods,6796,269.85
"Department for Business, Energy and Industrial Strategy",The Coal Authority,01/11/2016,Contract Hire Vehicles,Facilities,Alphabet Uk Fleet Man Ltd,7134,2381.15
"Department for Business, Energy and Industrial Strategy",The Coal Authority,31/10/2016,Contract Hire Vehicles,Facilities,Auto Smart Valeting Ltd,6915,540
"Department for Business, Energy and Industrial Strategy",The Coal Authority,04/11/2016,Contract Hire Vehicles,Facilities,Morley Accident Repair Ltd,6946,500
"Department for Business, Energy and Industrial Strategy",The Coal Authority,28/10/2016,Contract Hire Vehicles,Facilities,Pentagon,6807,122.88
"Department for Business, Energy and Industrial Strategy",The Coal Authority,28/10/2016,Contract Hire Vehicles,Facilities,Pentagon,6808,21.15
"Department for Business, Energy and Industrial Strategy",The Coal Authority,28/10/2016,Contract Hire Vehicles,Facilities,Pentagon,6811,21.15
"Department for Business, Energy and Industrial Strategy",The Coal Authority,31/10/2016,Contract Hire Vehicles,Facilities,Pentagon,6809,21.15
"Department for Business, Energy and Industrial Strategy",The Coal Authority,31/10/2016,Contract Hire Vehicles,Facilities,Pentagon,6810,21.15
"Department for Business, Energy and Industrial Strategy",The Coal Authority,04/11/2016,Contract Hire Vehicles,Facilities,Pentagon,6812,21.15
"Department for Business, Energy and Industrial Strategy",The Coal Authority,07/11/2016,Contract Hire Vehicles,Facilities,Pentagon,6813,21.15
"Department for Business, Energy and Industrial Strategy",The Coal Authority,07/11/2016,Contract Hire Vehicles,Facilities,Pentagon,6814,21.15
"Department for Business, Energy and Industrial Strategy",The Coal Authority,03/11/2016,Electricity Usage,Facilities,Edf Energy,7298,10497.67
"Department for Business, Energy and Industrial Strategy",The Coal Authority,26/10/2016,Fuel (Vehicle),Facilities,Allstar Business Solutions Ltd,7125,45.7
"Department for Business, Energy and Industrial Strategy",The Coal Authority,26/10/2016,Fuel (Vehicle),Facilities,Allstar Business Solutions Ltd,7104,32.29
"Department for Business, Energy and Industrial Strategy",The Coal Authority,26/10/2016,Fuel (Vehicle),Facilities,Allstar Business Solutions Ltd,7105,65.59
"Department for Business, Energy and Industrial Strategy",The Coal Authority,26/10/2016,Fuel (Vehicle),Facilities,Allstar Business Solutions Ltd,7106,57.82
"Department for Business, Energy and Industrial Strategy",The Coal Authority,26/10/2016,Fuel (Vehicle),Facilities,Allstar Business Solutions Ltd,7108,17.73
"Department for Business, Energy and Industrial Strategy",The Coal Authority,26/10/2016,Fuel (Vehicle),Facilities,Allstar Business Solutions Ltd,7109,42.01
"Department for Business, Energy and Industrial Strategy",The Coal Authority,26/10/2016,Fuel (Vehicle),Facilities,Allstar Business Solutions Ltd,7110,90.03
"Department for Business, Energy and Industrial Strategy",The Coal Authority,11/11/2016,Gas / Other Fuels,Facilities,Calor Gas Limited,7236,1175.48
"Department for Business, Energy and Industrial Strategy",The Coal Authority,14/11/2016,Office Printing Services,Facilities,Imprint Tudor House,6975,201.5
"Department for Business, Energy and Industrial Strategy",The Coal Authority,21/11/2016,Office Printing Services,Facilities,Imprint Tudor House,7333,65
"Department for Business, Energy and Industrial Strategy",The Coal Authority,31/10/2016,Outsourced Security Staff,Facilities,Axis Security Limited,6917,6382.08
"Department for Business, Energy and Industrial Strategy",The Coal Authority,28/10/2016,Plant Maintenance,Facilities,Mansfield Refrigeration & Air Conditioning Co Ltd,6857,747
"Department for Business, Energy and Industrial Strategy",The Coal Authority,28/10/2016,Plant Maintenance,Facilities,Mansfield Refrigeration & Air Conditioning Co Ltd,6858,42
"Department for Business, Energy and Industrial Strategy",The Coal Authority,25/10/2016,Site Repairs & Maintenance,Facilities,British Gas Energy Services Ltd T/A BMSI,6884,475
"Department for Business, Energy and Industrial Strategy",The Coal Authority,31/10/2016,Site Repairs & Maintenance,Facilities,D J Allen (Builders) Ltd,6878,1781.5
"Department for Business, Energy and Industrial Strategy",The Coal Authority,03/10/2016,Site Repairs & Maintenance,Facilities,RBS GPC Sept 2016,7288,516.69
"Department for Business, Energy and Industrial Strategy",The Coal Authority,31/10/2016,Site Repairs & Maintenance,Facilities,Ulyett Landscapes Ltd,6795,749.16
"Department for Business, Energy and Industrial Strategy",The Coal Authority,28/10/2016,Site Services,Facilities,Allen Vending Services,6909,60
"Department for Business, Energy and Industrial Strategy",The Coal Authority,29/10/2016,Site Services,Facilities,Garry Dalton,6868,80
"Department for Business, Energy and Industrial Strategy",The Coal Authority,29/10/2016,Site Services,Facilities,Garry Dalton,6869,550
"Department for Business, Energy and Industrial Strategy",The Coal Authority,03/10/2016,Stationery,Facilities,RBS GPC Sept 2016,7288,39.25
"Department for Business, Energy and Industrial Strategy",The Coal Authority,05/10/2016,Applications Consultancy,Finance Projects & Business Planning,7205 - Sapphire,7432,-2198.2
"Department for Business, Energy and Industrial Strategy",The Coal Authority,21/09/2016,Applications Consultancy,Finance Projects & Business Planning,Sapphire Systems Plc,7205,224.9
"Department for Business, Energy and Industrial Strategy",The Coal Authority,21/09/2016,Applications Consultancy,Finance Projects & Business Planning,Sapphire Systems Plc,7205,123.3
"Department for Business, Energy and Industrial Strategy",The Coal Authority,21/09/2016,Applications Consultancy,Finance Projects & Business Planning,Sapphire Systems Plc,7205,925
"Department for Business, Energy and Industrial Strategy",The Coal Authority,21/09/2016,Applications Consultancy,Finance Projects & Business Planning,Sapphire Systems Plc,7205,925
"Department for Business, Energy and Industrial Strategy",The Coal Authority,15/11/2016,Bank Charges,Finance Projects & Business Planning,National Westminster Bank Plc,6916,73.54
"Department for Business, Energy and Industrial Strategy",The Coal Authority,31/10/2016,Payroll Processing Fees,Finance Projects & Business Planning,Cgi It Uk Ltd,6955,1212.72
"Department for Business, Energy and Industrial Strategy",The Coal Authority,31/10/2016,Software Support & Maintenance - SaaS,Finance Projects & Business Planning,Bottomline Technologies,6885,91
"Department for Business, Energy and Industrial Strategy",The Coal Authority,05/10/2016,Temporary Contractors,Finance Projects & Business Planning,Cherry Professional Ltd,6960,2750
"Department for Business, Energy and Industrial Strategy",The Coal Authority,12/10/2016,Temporary Contractors,Finance Projects & Business Planning,Cherry Professional Ltd,6959,1375
"Department for Business, Energy and Industrial Strategy",The Coal Authority,19/10/2016,Temporary Contractors,Finance Projects & Business Planning,Cherry Professional Ltd,6958,1375
"Department for Business, Energy and Industrial Strategy",The Coal Authority,26/10/2016,Temporary Contractors,Finance Projects & Business Planning,Cherry Professional Ltd,6957,1375
"Department for Business, Energy and Industrial Strategy",The Coal Authority,26/10/2016,Temporary Contractors,Finance Projects & Business Planning,Cherry Professional Ltd,6880,637.5
"Department for Business, Energy and Industrial Strategy",The Coal Authority,02/11/2016,Temporary Contractors,Finance Projects & Business Planning,Cherry Professional Ltd,6879,595
"Department for Business, Energy and Industrial Strategy",The Coal Authority,03/10/2016,Training & Education,Finance Projects & Business Planning,RBS GPC Sept 2016,7288,248
"Department for Business, Energy and Industrial Strategy",The Coal Authority,20/07/2016,External Agency / Introduction Fees,HR & OD,Access Computers Cons Plc,7034,6000
"Department for Business, Energy and Industrial Strategy",The Coal Authority,03/10/2016,External Agency / Introduction Fees,HR & OD,RBS GPC Sept 2016,7288,1260
"Department for Business, Energy and Industrial Strategy",The Coal Authority,03/10/2016,Incidentals,HR & OD,RBS GPC Sept 2016,7288,11
"Department for Business, Energy and Industrial Strategy",The Coal Authority,03/10/2016,Recruitment Advertising,HR & OD,RBS GPC Sept 2016,7288,522
"Department for Business, Energy and Industrial Strategy",The Coal Authority,31/10/2016,Temporary Contractors,ICT Development,Equal Experts UK Ltd,6875,30000
"Department for Business, Energy and Industrial Strategy",The Coal Authority,27/10/2016,Applications Consultancy,Infrastructure Management,Nowcomm,7169,1450
"Department for Business, Energy and Industrial Strategy",The Coal Authority,03/10/2016,Hardware Licenses,Infrastructure Management,RBS GPC Sept 2016,7288,1474.77
"Department for Business, Energy and Industrial Strategy",The Coal Authority,03/10/2016,Information Security software support,Infrastructure Management,RBS GPC Sept 2016,7288,1474.77
"Department for Business, Energy and Industrial Strategy",The Coal Authority,31/10/2016,Networking / Cabling,Infrastructure Management,CCS Media,7042,561.12
"Department for Business, Energy and Industrial Strategy",The Coal Authority,02/11/2016,Networking / Cabling,Infrastructure Management,CCS Media,7043,676.89
"Department for Business, Energy and Industrial Strategy",The Coal Authority,01/09/2016,Temporary Contractors,Infrastructure Management,Playcool Limited,6815,7480
"Department for Business, Energy and Industrial Strategy",The Coal Authority,01/11/2016,Temporary Contractors,Infrastructure Management,Playcool Limited,6816,7140
"Department for Business, Energy and Industrial Strategy",The Coal Authority,10/11/2016,Applications Consultancy,Mining Information,Scisys Uk Ltd,7293,184.83
"Department for Business, Energy and Industrial Strategy",The Coal Authority,10/11/2016,Applications Consultancy,Mining Information,Scisys Uk Ltd,7293,1456.4
"Department for Business, Energy and Industrial Strategy",The Coal Authority,10/11/2016,Applications Consultancy,Mining Information,Scisys Uk Ltd,7293,530.4
"Department for Business, Energy and Industrial Strategy",The Coal Authority,10/11/2016,CY - Intangible IT - Additions,Mining Information,Scisys Uk Ltd,7293,14488.82
"Department for Business, Energy and Industrial Strategy",The Coal Authority,10/11/2016,Requests For Change,Mining Information,Scisys Uk Ltd,7293,1345.65
"Department for Business, Energy and Industrial Strategy",The Coal Authority,10/11/2016,Requests For Change,Mining Information,Scisys Uk Ltd,7293,612.53
"Department for Business, Energy and Industrial Strategy",The Coal Authority,10/11/2016,Software Support & Maintenance - On Premise,Mining Information,Scisys Uk Ltd,7293,6613.73
"Department for Business, Energy and Industrial Strategy",The Coal Authority,10/11/2016,Applications Consultancy,Mining Reports Retail,Scisys Uk Ltd,7293,184.83
"Department for Business, Energy and Industrial Strategy",The Coal Authority,10/11/2016,Applications Consultancy,Mining Reports Retail,Scisys Uk Ltd,7293,1456.4
"Department for Business, Energy and Industrial Strategy",The Coal Authority,10/11/2016,Applications Consultancy,Mining Reports Retail,Scisys Uk Ltd,7293,530.4
"Department for Business, Energy and Industrial Strategy",The Coal Authority,07/12/2016,BGS Royalty,Mining Reports Retail,6845 NERC,7574,-14582.48
"Department for Business, Energy and Industrial Strategy",The Coal Authority,04/11/2016,BGS Royalty,Mining Reports Retail,Nerc,6845,14582.48
"Department for Business, Energy and Industrial Strategy",The Coal Authority,03/10/2016,Business Entertainment / Hospitality,Mining Reports Retail,RBS GPC Sept 2016,7288,192.56
"Department for Business, Energy and Industrial Strategy",The Coal Authority,10/11/2016,CY - Intangible IT - Additions,Mining Reports Retail,Scisys Uk Ltd,7293,14488.82
"Department for Business, Energy and Industrial Strategy",The Coal Authority,03/10/2016,Fuel (Vehicle),Mining Reports Retail,RBS GPC Sept 2016,7288,31.13
"Department for Business, Energy and Industrial Strategy",The Coal Authority,03/10/2016,Incidentals,Mining Reports Retail,RBS GPC Sept 2016,7288,43.4
"Department for Business, Energy and Industrial Strategy",The Coal Authority,11/11/2016,Other Hosting / IaaS,Mining Reports Retail,Bytemark Limited,7143,124
"Department for Business, Energy and Industrial Strategy",The Coal Authority,10/11/2016,Requests For Change,Mining Reports Retail,Scisys Uk Ltd,7293,612.53
"Department for Business, Energy and Industrial Strategy",The Coal Authority,10/11/2016,Requests For Change,Mining Reports Retail,Scisys Uk Ltd,7293,1345.65
"Department for Business, Energy and Industrial Strategy",The Coal Authority,10/11/2016,Software Support & Maintenance - On Premise,Mining Reports Retail,Scisys Uk Ltd,7293,6613.73
"Department for Business, Energy and Industrial Strategy",The Coal Authority,03/10/2016,Subsistence Allowances,Mining Reports Retail,RBS GPC Sept 2016,7288,60.75
"Department for Business, Energy and Industrial Strategy",The Coal Authority,03/10/2016,Sundry Office Expenses,Mining Reports Retail,RBS GPC Sept 2016,7288,34
"Department for Business, Energy and Industrial Strategy",The Coal Authority,28/10/2016,Temporary Contractors,Mining Reports Retail,Key Personnel Solutions Ltd,6920,346.8
"Department for Business, Energy and Industrial Strategy",The Coal Authority,11/11/2016,Temporary Contractors,Mining Reports Retail,Key Personnel Solutions Ltd,7164,427.72
"Department for Business, Energy and Industrial Strategy",The Coal Authority,03/10/2016,Training & Education,Procurement,RBS GPC Sept 2016,7288,99.96
"Department for Business, Energy and Industrial Strategy",The Coal Authority,22/09/2016,Surface Hazards - Contractor & Claim Costs,PS&S - Commercial,Soil Engineering Geoservices L,7296,12232.9
"Department for Business, Energy and Industrial Strategy",The Coal Authority,10/11/2016,Applications Consultancy,PS&S - Commercial Delivery,Scisys Uk Ltd,7293,364.1
"Department for Business, Energy and Industrial Strategy",The Coal Authority,10/11/2016,Applications Consultancy,PS&S - Commercial Delivery,Scisys Uk Ltd,7293,46.21
"Department for Business, Energy and Industrial Strategy",The Coal Authority,10/11/2016,CY - Intangible IT - Additions,PS&S - Commercial Delivery,Scisys Uk Ltd,7293,3622.2
"Department for Business, Energy and Industrial Strategy",The Coal Authority,26/10/2016,Fuel (Vehicle),PS&S - Commercial Delivery,Allstar Business Solutions Ltd,7123,44.91
"Department for Business, Energy and Industrial Strategy",The Coal Authority,03/10/2016,Fuel (Vehicle),PS&S - Commercial Delivery,RBS GPC Sept 2016,7288,92.75
"Department for Business, Energy and Industrial Strategy",The Coal Authority,03/10/2016,Incidentals,PS&S - Commercial Delivery,RBS GPC Sept 2016,7288,13.41
"Department for Business, Energy and Industrial Strategy",The Coal Authority,24/11/2016,Mine Entry Inspection - Contractor & Claim Costs,PS&S - Commercial Delivery,Alliance Contracting Solutions Ltd,7273,2655.36
"Department for Business, Energy and Industrial Strategy",The Coal Authority,28/10/2016,Mine Entry Inspection - Contractor & Claim Costs,PS&S - Commercial Delivery,Balfour Beatty Civil Eng Ltd,6887,12284.48
"Department for Business, Energy and Industrial Strategy",The Coal Authority,02/11/2016,Mine Entry Inspection - Contractor & Claim Costs,PS&S - Commercial Delivery,Balfour Beatty Civil Eng Ltd,6895,930.72
"Department for Business, Energy and Industrial Strategy",The Coal Authority,02/11/2016,Mine Entry Inspection - Contractor & Claim Costs,PS&S - Commercial Delivery,Balfour Beatty Civil Eng Ltd,6897,549.3
"Department for Business, Energy and Industrial Strategy",The Coal Authority,02/11/2016,Mine Entry Inspection - Contractor & Claim Costs,PS&S - Commercial Delivery,Balfour Beatty Civil Eng Ltd,6898,1070.71
"Department for Business, Energy and Industrial Strategy",The Coal Authority,16/11/2016,Mine Entry Inspection - Contractor & Claim Costs,PS&S - Commercial Delivery,Balfour Beatty Civil Eng Ltd,7145,1165.14
"Department for Business, Energy and Industrial Strategy",The Coal Authority,14/11/2016,Mine Entry Inspection - Contractor & Claim Costs,PS&S - Commercial Delivery,Cornerstone  Projects Ltd,6847,119.48
"Department for Business, Energy and Industrial Strategy",The Coal Authority,14/11/2016,Mine Entry Inspection - Contractor & Claim Costs,PS&S - Commercial Delivery,Jim Davies Civil Engineering,7340,4998.65
"Department for Business, Energy and Industrial Strategy",The Coal Authority,28/11/2016,Mine Entry Inspection - Contractor & Claim Costs,PS&S - Commercial Delivery,Llettyshenkin Cons Co Ltd,7302,8703.5
"Department for Business, Energy and Industrial Strategy",The Coal Authority,28/11/2016,Mine Entry Inspection - Contractor & Claim Costs,PS&S - Commercial Delivery,Llettyshenkin Cons Co Ltd,7303,18574.06
"Department for Business, Energy and Industrial Strategy",The Coal Authority,31/10/2016,Mine Entry Inspection - Outsourced Management,PS&S - Commercial Delivery,Interlock Surveys,6974,13482
"Department for Business, Energy and Industrial Strategy",The Coal Authority,03/11/2016,Mine Entry Inspection - Outsourced Management,PS&S - Commercial Delivery,Mines Rescue Service Limited,6859,26586
"Department for Business, Energy and Industrial Strategy",The Coal Authority,10/11/2016,Requests For Change,PS&S - Commercial Delivery,Scisys Uk Ltd,7293,153.14
"Department for Business, Energy and Industrial Strategy",The Coal Authority,10/11/2016,Requests For Change,PS&S - Commercial Delivery,Scisys Uk Ltd,7293,336.41
"Department for Business, Energy and Industrial Strategy",The Coal Authority,10/11/2016,Software Support & Maintenance - On Premise,PS&S - Commercial Delivery,Scisys Uk Ltd,7293,1653.43
"Department for Business, Energy and Industrial Strategy",The Coal Authority,03/10/2016,Stationery,PS&S - Commercial Delivery,RBS GPC Sept 2016,7288,31.5
"Department for Business, Energy and Industrial Strategy",The Coal Authority,03/10/2016,Subsistence Allowances,PS&S - Commercial Delivery,RBS GPC Sept 2016,7288,70.22
"Department for Business, Energy and Industrial Strategy",The Coal Authority,24/11/2016,Tips - Maintenance,PS&S - Commercial Delivery,Alliance Contracting Solutions Ltd,7281,954.68
"Department for Business, Energy and Industrial Strategy",The Coal Authority,08/11/2016,Legal - General,PS&S - Daw Mill,Dla Piper Uk Llp,7322,1776
"Department for Business, Energy and Industrial Strategy",The Coal Authority,22/11/2016,Subsidence - Contractor & Claim Costs,PS&S - Daw Mill,J T Wood & Son,7077,6415.07
"Department for Business, Energy and Industrial Strategy",The Coal Authority,03/10/2016,Subsistence Allowances,PS&S - Engineering,RBS GPC Sept 2016,7288,15.03
"Department for Business, Energy and Industrial Strategy",The Coal Authority,03/10/2016,Training & Education,PS&S - Engineering,RBS GPC Sept 2016,7288,540
"Department for Business, Energy and Industrial Strategy",The Coal Authority,10/11/2016,Applications Consultancy,PS&S - General Claims,Scisys Uk Ltd,7293,364.1
"Department for Business, Energy and Industrial Strategy",The Coal Authority,10/11/2016,Applications Consultancy,PS&S - General Claims,Scisys Uk Ltd,7293,46.21
"Department for Business, Energy and Industrial Strategy",The Coal Authority,10/11/2016,Applications Consultancy,PS&S - General Claims,Scisys Uk Ltd,7293,132.6
"Department for Business, Energy and Industrial Strategy",The Coal Authority,10/11/2016,Applications Consultancy,PS&S - General Claims,Scisys Uk Ltd,7293,132.6
"Department for Business, Energy and Industrial Strategy",The Coal Authority,28/11/2016,Bridgewater - Contractor & Claim Costs,PS&S - General Claims,The Bridgewater Canal Co Ltd,7311,11395
"Department for Business, Energy and Industrial Strategy",The Coal Authority,03/10/2016,Business Entertainment / Hospitality,PS&S - General Claims,RBS GPC Sept 2016,7288,27.66
"Department for Business, Energy and Industrial Strategy",The Coal Authority,30/11/2016,Business Meetings,PS&S - General Claims,7288-GPC - Irrecoverable VAT,7611,26
"Department for Business, Energy and Industrial Strategy",The Coal Authority,03/10/2016,Business Meetings,PS&S - General Claims,RBS GPC Sept 2016,7288,154.12
"Department for Business, Energy and Industrial Strategy",The Coal Authority,31/10/2016,Contract Hire Vehicles,PS&S - General Claims,Alphabet Uk Fleet Man Ltd,7135,330.21
"Department for Business, Energy and Industrial Strategy",The Coal Authority,03/10/2016,Contract Hire Vehicles,PS&S - General Claims,RBS GPC Sept 2016,7288,2.99
"Department for Business, Energy and Industrial Strategy",The Coal Authority,10/11/2016,CY - Intangible IT - Additions,PS&S - General Claims,Scisys Uk Ltd,7293,3622.2
"Department for Business, Energy and Industrial Strategy",The Coal Authority,03/10/2016,Fares - Public Transport,PS&S - General Claims,RBS GPC Sept 2016,7288,11.29
"Department for Business, Energy and Industrial Strategy",The Coal Authority,03/10/2016,Fares - Rail,PS&S - General Claims,RBS GPC Sept 2016,7288,27.4
"Department for Business, Energy and Industrial Strategy",The Coal Authority,24/11/2016,Fuel (Vehicle),PS&S - General Claims,7010-Cancellation of GPC expenditure,7136,-25.83
"Department for Business, Energy and Industrial Strategy",The Coal Authority,24/11/2016,Fuel (Vehicle),PS&S - General Claims,7010-Cancellation of GPC expenditure,7136,-32.64
"Department for Business, Energy and Industrial Strategy",The Coal Authority,26/10/2016,Fuel (Vehicle),PS&S - General Claims,Allstar Business Solutions Ltd,7122,32.28
"Department for Business, Energy and Industrial Strategy",The Coal Authority,26/10/2016,Fuel (Vehicle),PS&S - General Claims,Allstar Business Solutions Ltd,7111,108.82
"Department for Business, Energy and Industrial Strategy",The Coal Authority,26/10/2016,Fuel (Vehicle),PS&S - General Claims,Allstar Business Solutions Ltd,7112,60.02
"Department for Business, Energy and Industrial Strategy",The Coal Authority,26/10/2016,Fuel (Vehicle),PS&S - General Claims,Allstar Business Solutions Ltd,7115,48.42
"Department for Business, Energy and Industrial Strategy",The Coal Authority,26/10/2016,Fuel (Vehicle),PS&S - General Claims,Allstar Business Solutions Ltd,7116,62.48
"Department for Business, Energy and Industrial Strategy",The Coal Authority,26/10/2016,Fuel (Vehicle),PS&S - General Claims,Allstar Business Solutions Ltd,7117,62.28
"Department for Business, Energy and Industrial Strategy",The Coal Authority,26/10/2016,Fuel (Vehicle),PS&S - General Claims,Allstar Business Solutions Ltd,7118,75.41
"Department for Business, Energy and Industrial Strategy",The Coal Authority,26/10/2016,Fuel (Vehicle),PS&S - General Claims,Allstar Business Solutions Ltd,7119,79.23
"Department for Business, Energy and Industrial Strategy",The Coal Authority,02/11/2016,Fuel (Vehicle),PS&S - General Claims,Allstar Business Solutions Ltd,7102,50.03
"Department for Business, Energy and Industrial Strategy",The Coal Authority,02/11/2016,Fuel (Vehicle),PS&S - General Claims,Allstar Business Solutions Ltd,7103,26.23
"Department for Business, Energy and Industrial Strategy",The Coal Authority,26/11/2016,Fuel (Vehicle),PS&S - General Claims,Allstar Business Solutions Ltd,7114,82.3
"Department for Business, Energy and Industrial Strategy",The Coal Authority,03/10/2016,Fuel (Vehicle),PS&S - General Claims,RBS GPC Sept 2016,7288,173.85
"Department for Business, Energy and Industrial Strategy",The Coal Authority,30/11/2016,Fuel (Vehicle),PS&S - General Claims,VAT reclaimed on business mileage,7346,-29.48
"Department for Business, Energy and Industrial Strategy",The Coal Authority,24/11/2016,Incidentals,PS&S - General Claims,7010-Cancellation of GPC expenditure,7136,-2.7
"Department for Business, Energy and Industrial Strategy",The Coal Authority,03/10/2016,Incidentals,PS&S - General Claims,RBS GPC Sept 2016,7288,40.59
"Department for Business, Energy and Industrial Strategy",The Coal Authority,08/11/2016,Legal - General,PS&S - General Claims,Dla Piper Uk Llp,7322,7811.5
"Department for Business, Energy and Industrial Strategy",The Coal Authority,30/11/2016,Membership Subscriptions,PS&S - General Claims,GPC September 2016 - VAT claimed in erro,7626,21.17
"Department for Business, Energy and Industrial Strategy",The Coal Authority,03/10/2016,Membership Subscriptions,PS&S - General Claims,RBS GPC Sept 2016,7288,105.83
"Department for Business, Energy and Industrial Strategy",The Coal Authority,03/10/2016,Office Printing Services,PS&S - General Claims,RBS GPC Sept 2016,7288,167.97
"Department for Business, Energy and Industrial Strategy",The Coal Authority,10/11/2016,Requests For Change,PS&S - General Claims,Scisys Uk Ltd,7293,336.39
"Department for Business, Energy and Industrial Strategy",The Coal Authority,10/11/2016,Requests For Change,PS&S - General Claims,Scisys Uk Ltd,7293,153.14
"Department for Business, Energy and Industrial Strategy",The Coal Authority,10/11/2016,Software Support & Maintenance - On Premise,PS&S - General Claims,Scisys Uk Ltd,7293,1653.43
"Department for Business, Energy and Industrial Strategy",The Coal Authority,03/10/2016,Stationery,PS&S - General Claims,RBS GPC Sept 2016,7288,35.45
"Department for Business, Energy and Industrial Strategy",The Coal Authority,07/11/2016,Subsidence - Consultancy,PS&S - General Claims,Compensation Payment,6759,315
"Department for Business, Energy and Industrial Strategy",The Coal Authority,22/11/2016,Subsidence - Consultancy,PS&S - General Claims,Compensation Payment,7064,13018.7
"Department for Business, Energy and Industrial Strategy",The Coal Authority,07/11/2016,Subsidence - Consultancy,PS&S - General Claims,Graham + Sibbald,6758,360
"Department for Business, Energy and Industrial Strategy",The Coal Authority,15/11/2016,Subsidence - Consultancy,PS&S - General Claims,Rettie & Company Limited,6936,1400
"Department for Business, Energy and Industrial Strategy",The Coal Authority,28/11/2016,Subsidence - Contractor & Claim Costs,PS&S - General Claims,2776 AECOM,7197,-4449.76
"Department for Business, Energy and Industrial Strategy",The Coal Authority,25/11/2016,Subsidence - Contractor & Claim Costs,PS&S - General Claims,Alliance Contracting Solutions Ltd,7279,493.26
"Department for Business, Energy and Industrial Strategy",The Coal Authority,30/11/2016,Subsidence - Contractor & Claim Costs,PS&S - General Claims,Alliance Contracting Solutions Ltd,7308,5144.69
"Department for Business, Energy and Industrial Strategy",The Coal Authority,03/11/2016,Subsidence - Contractor & Claim Costs,PS&S - General Claims,Balfour Beatty Civil Eng Ltd,6900,8229.97
"Department for Business, Energy and Industrial Strategy",The Coal Authority,16/11/2016,Subsidence - Contractor & Claim Costs,PS&S - General Claims,Balfour Beatty Civil Eng Ltd,7150,4298.88
"Department for Business, Energy and Industrial Strategy",The Coal Authority,16/11/2016,Subsidence - Contractor & Claim Costs,PS&S - General Claims,Balfour Beatty Civil Eng Ltd,7152,5608.72
"Department for Business, Energy and Industrial Strategy",The Coal Authority,23/11/2016,Subsidence - Contractor & Claim Costs,PS&S - General Claims,Balfour Beatty Civil Eng Ltd,7315,8028.11
"Department for Business, Energy and Industrial Strategy",The Coal Authority,26/11/2016,Subsidence - Contractor & Claim Costs,PS&S - General Claims,Balfour Beatty Civil Eng Ltd,7318,9805.01
"Department for Business, Energy and Industrial Strategy",The Coal Authority,02/11/2016,Subsidence - Contractor & Claim Costs,PS&S - General Claims,Compensation Payment,6564,16820
"Department for Business, Energy and Industrial Strategy",The Coal Authority,15/11/2016,Subsidence - Contractor & Claim Costs,PS&S - General Claims,Compensation Payment,6932,150
"Department for Business, Energy and Industrial Strategy",The Coal Authority,15/11/2016,Subsidence - Contractor & Claim Costs,PS&S - General Claims,Compensation Payment,6933,2343.6
"Department for Business, Energy and Industrial Strategy",The Coal Authority,28/11/2016,Subsidence - Contractor & Claim Costs,PS&S - General Claims,Compensation Payment,7199,1428
"Department for Business, Energy and Industrial Strategy",The Coal Authority,15/11/2016,Subsidence - Contractor & Claim Costs,PS&S - General Claims,Cook & Co Residential Lettings,6942,3900
"Department for Business, Energy and Industrial Strategy",The Coal Authority,31/10/2016,Subsidence - Contractor & Claim Costs,PS&S - General Claims,Cornerstone  Projects Ltd,6848,247.7
"Department for Business, Energy and Industrial Strategy",The Coal Authority,14/11/2016,Subsidence - Contractor & Claim Costs,PS&S - General Claims,Cornerstone  Projects Ltd,7155,103
"Department for Business, Energy and Industrial Strategy",The Coal Authority,11/11/2016,Subsidence - Contractor & Claim Costs,PS&S - General Claims,D S Williams Painters & Decs,7037,45402.39
"Department for Business, Energy and Industrial Strategy",The Coal Authority,08/11/2016,Subsidence - Contractor & Claim Costs,PS&S - General Claims,Dominic & Sons,6876,1606.67
"Department for Business, Energy and Industrial Strategy",The Coal Authority,19/10/2016,Subsidence - Contractor & Claim Costs,PS&S - General Claims,Edf Energy,6555,132.38
"Department for Business, Energy and Industrial Strategy",The Coal Authority,25/10/2016,Subsidence - Contractor & Claim Costs,PS&S - General Claims,Fife Council,6870,3360
"Department for Business, Energy and Industrial Strategy",The Coal Authority,07/11/2016,Subsidence - Contractor & Claim Costs,PS&S - General Claims,Front Street Ltd,6757,9100
"Department for Business, Energy and Industrial Strategy",The Coal Authority,22/11/2016,Subsidence - Contractor & Claim Costs,PS&S - General Claims,Fully Group,7068,405.82
"Department for Business, Energy and Industrial Strategy",The Coal Authority,02/11/2016,Subsidence - Contractor & Claim Costs,PS&S - General Claims,Geol-Consultants Ltd,6855,1432.59
"Department for Business, Energy and Industrial Strategy",The Coal Authority,05/11/2016,Subsidence - Contractor & Claim Costs,PS&S - General Claims,Geol-Consultants Ltd,6856,1432.59
"Department for Business, Energy and Industrial Strategy",The Coal Authority,21/11/2016,Subsidence - Contractor & Claim Costs,PS&S - General Claims,Geol-Consultants Ltd,7259,3018
"Department for Business, Energy and Industrial Strategy",The Coal Authority,31/10/2016,Subsidence - Contractor & Claim Costs,PS&S - General Claims,Hardyman & Co Ltd,6977,-828.82
"Department for Business, Energy and Industrial Strategy",The Coal Authority,15/11/2016,Subsidence - Contractor & Claim Costs,PS&S - General Claims,Irent,6935,455
"Department for Business, Energy and Industrial Strategy",The Coal Authority,15/11/2016,Subsidence - Contractor & Claim Costs,PS&S - General Claims,J J Fox & Sons,6945,862.53
"Department for Business, Energy and Industrial Strategy",The Coal Authority,09/11/2016,Subsidence - Contractor & Claim Costs,PS&S - General Claims,J Murphy & Sons Limited,7167,12998.71
"Department for Business, Energy and Industrial Strategy",The Coal Authority,30/11/2016,Subsidence - Contractor & Claim Costs,PS&S - General Claims,Kidd & Spoor Solicitors Limited,7341,194740.31
"Department for Business, Energy and Industrial Strategy",The Coal Authority,02/11/2016,Subsidence - Contractor & Claim Costs,PS&S - General Claims,Mason Land Surveys Ltd,7177,869.52
"Department for Business, Energy and Industrial Strategy",The Coal Authority,22/11/2016,Subsidence - Contractor & Claim Costs,PS&S - General Claims,McKenzies Solicitors,7066,360
"Department for Business, Energy and Industrial Strategy",The Coal Authority,22/11/2016,Subsidence - Contractor & Claim Costs,PS&S - General Claims,Compensation Payment,7067,2584.41
"Department for Business, Energy and Industrial Strategy",The Coal Authority,22/11/2016,Subsidence - Contractor & Claim Costs,PS&S - General Claims,Compensation Payment,7069,600
"Department for Business, Energy and Industrial Strategy",The Coal Authority,03/10/2016,Subsidence - Contractor & Claim Costs,PS&S - General Claims,RBS GPC Sept 2016,7288,797.87
"Department for Business, Energy and Industrial Strategy",The Coal Authority,02/11/2016,Subsidence - Contractor & Claim Costs,PS&S - General Claims,Rental Payment,6562,1350
"Department for Business, Energy and Industrial Strategy",The Coal Authority,02/11/2016,Subsidence - Contractor & Claim Costs,PS&S - General Claims,Rental Payment,6563,100
"Department for Business, Energy and Industrial Strategy",The Coal Authority,02/11/2016,Subsidence - Contractor & Claim Costs,PS&S - General Claims,Rental Payment,6580,300
"Department for Business, Energy and Industrial Strategy",The Coal Authority,28/11/2016,Subsidence - Contractor & Claim Costs,PS&S - General Claims,Rental Payment,7192,1790
"Department for Business, Energy and Industrial Strategy",The Coal Authority,02/11/2016,Subsidence - Contractor & Claim Costs,PS&S - General Claims,Sarah Mains Residential Ltd,6582,675
"Department for Business, Energy and Industrial Strategy",The Coal Authority,31/10/2016,Subsidence - Contractor & Claim Costs,PS&S - General Claims,Studio-G Architecture Llp,6805,1984.5
"Department for Business, Energy and Industrial Strategy",The Coal Authority,15/11/2016,Subsidence - Contractor & Claim Costs,PS&S - General Claims,Tyne & Country,6944,1455
"Department for Business, Energy and Industrial Strategy",The Coal Authority,28/11/2016,Subsidence - Contractor & Claim Costs,PS&S - General Claims,Waller Pollins Goldstein,7201,194001
"Department for Business, Energy and Industrial Strategy",The Coal Authority,24/11/2016,Subsistence Allowances,PS&S - General Claims,7010-Adjustment to Subsistence claim-57,7161,-25.74
"Department for Business, Energy and Industrial Strategy",The Coal Authority,24/11/2016,Subsistence Allowances,PS&S - General Claims,7010-Cancellation of GPC expenditure,7136,-1.24
"Department for Business, Energy and Industrial Strategy",The Coal Authority,24/11/2016,Subsistence Allowances,PS&S - General Claims,7010-Cancellation of GPC expenditure,7136,-2.66
"Department for Business, Energy and Industrial Strategy",The Coal Authority,24/11/2016,Subsistence Allowances,PS&S - General Claims,7010-Cancellation of GPC expenditure,7136,-3.49
"Department for Business, Energy and Industrial Strategy",The Coal Authority,24/11/2016,Subsistence Allowances,PS&S - General Claims,7010-Cancellation of GPC expenditure,7136,-4.85
"Department for Business, Energy and Industrial Strategy",The Coal Authority,24/11/2016,Subsistence Allowances,PS&S - General Claims,7010-Cancellation of GPC expenditure,7136,-11.25
"Department for Business, Energy and Industrial Strategy",The Coal Authority,24/11/2016,Subsistence Allowances,PS&S - General Claims,7010-Cancellation of GPC expenditure,7136,-13.69
"Department for Business, Energy and Industrial Strategy",The Coal Authority,24/11/2016,Subsistence Allowances,PS&S - General Claims,7010-Cancellation of GPC expenditure,7136,-20.76
"Department for Business, Energy and Industrial Strategy",The Coal Authority,03/10/2016,Subsistence Allowances,PS&S - General Claims,RBS GPC Sept 2016,7288,105.49
"Department for Business, Energy and Industrial Strategy",The Coal Authority,03/10/2016,Sundry Office Expenses,PS&S - General Claims,RBS GPC Sept 2016,7288,32.49
"Department for Business, Energy and Industrial Strategy",The Coal Authority,31/10/2016,Surface Hazards - Contractor & Claim Costs,PS&S - General Claims,Alliance Contracting Solutions Ltd,6921,1735.53
"Department for Business, Energy and Industrial Strategy",The Coal Authority,31/10/2016,Surface Hazards - Contractor & Claim Costs,PS&S - General Claims,Alliance Contracting Solutions Ltd,6924,691.76
"Department for Business, Energy and Industrial Strategy",The Coal Authority,31/10/2016,Surface Hazards - Contractor & Claim Costs,PS&S - General Claims,Alliance Contracting Solutions Ltd,6925,2758.53
"Department for Business, Energy and Industrial Strategy",The Coal Authority,31/10/2016,Surface Hazards - Contractor & Claim Costs,PS&S - General Claims,Alliance Contracting Solutions Ltd,6949,1894.78
"Department for Business, Energy and Industrial Strategy",The Coal Authority,31/10/2016,Surface Hazards - Contractor & Claim Costs,PS&S - General Claims,Alliance Contracting Solutions Ltd,7128,7501.34
"Department for Business, Energy and Industrial Strategy",The Coal Authority,16/11/2016,Surface Hazards - Contractor & Claim Costs,PS&S - General Claims,Alliance Contracting Solutions Ltd,6947,496.03
"Department for Business, Energy and Industrial Strategy",The Coal Authority,16/11/2016,Surface Hazards - Contractor & Claim Costs,PS&S - General Claims,Alliance Contracting Solutions Ltd,6948,864.84
"Department for Business, Energy and Industrial Strategy",The Coal Authority,24/11/2016,Surface Hazards - Contractor & Claim Costs,PS&S - General Claims,Alliance Contracting Solutions Ltd,7275,1309.94
"Department for Business, Energy and Industrial Strategy",The Coal Authority,24/11/2016,Surface Hazards - Contractor & Claim Costs,PS&S - General Claims,Alliance Contracting Solutions Ltd,7283,862.82
"Department for Business, Energy and Industrial Strategy",The Coal Authority,30/11/2016,Surface Hazards - Contractor & Claim Costs,PS&S - General Claims,Alliance Contracting Solutions Ltd,7305,568
"Department for Business, Energy and Industrial Strategy",The Coal Authority,30/11/2016,Surface Hazards - Contractor & Claim Costs,PS&S - General Claims,Alliance Contracting Solutions Ltd,7306,6611.22
"Department for Business, Energy and Industrial Strategy",The Coal Authority,30/11/2016,Surface Hazards - Contractor & Claim Costs,PS&S - General Claims,Alliance Contracting Solutions Ltd,7309,2500.8
"Department for Business, Energy and Industrial Strategy",The Coal Authority,30/11/2016,Surface Hazards - Contractor & Claim Costs,PS&S - General Claims,Alliance Contracting Solutions Ltd,7310,2224.53
"Department for Business, Energy and Industrial Strategy",The Coal Authority,28/10/2016,Surface Hazards - Contractor & Claim Costs,PS&S - General Claims,Balfour Beatty Civil Eng Ltd,6886,585.52
"Department for Business, Energy and Industrial Strategy",The Coal Authority,28/10/2016,Surface Hazards - Contractor & Claim Costs,PS&S - General Claims,Balfour Beatty Civil Eng Ltd,6888,7356.29
"Department for Business, Energy and Industrial Strategy",The Coal Authority,28/10/2016,Surface Hazards - Contractor & Claim Costs,PS&S - General Claims,Balfour Beatty Civil Eng Ltd,6889,3453.05
"Department for Business, Energy and Industrial Strategy",The Coal Authority,02/11/2016,Surface Hazards - Contractor & Claim Costs,PS&S - General Claims,Balfour Beatty Civil Eng Ltd,6890,213.78
"Department for Business, Energy and Industrial Strategy",The Coal Authority,02/11/2016,Surface Hazards - Contractor & Claim Costs,PS&S - General Claims,Balfour Beatty Civil Eng Ltd,6891,616.44
"Department for Business, Energy and Industrial Strategy",The Coal Authority,02/11/2016,Surface Hazards - Contractor & Claim Costs,PS&S - General Claims,Balfour Beatty Civil Eng Ltd,6892,190.08
"Department for Business, Energy and Industrial Strategy",The Coal Authority,02/11/2016,Surface Hazards - Contractor & Claim Costs,PS&S - General Claims,Balfour Beatty Civil Eng Ltd,6893,212.55
"Department for Business, Energy and Industrial Strategy",The Coal Authority,02/11/2016,Surface Hazards - Contractor & Claim Costs,PS&S - General Claims,Balfour Beatty Civil Eng Ltd,6894,161.1
"Department for Business, Energy and Industrial Strategy",The Coal Authority,02/11/2016,Surface Hazards - Contractor & Claim Costs,PS&S - General Claims,Balfour Beatty Civil Eng Ltd,6896,1262.82
"Department for Business, Energy and Industrial Strategy",The Coal Authority,02/11/2016,Surface Hazards - Contractor & Claim Costs,PS&S - General Claims,Balfour Beatty Civil Eng Ltd,6899,385.06
"Department for Business, Energy and Industrial Strategy",The Coal Authority,03/11/2016,Surface Hazards - Contractor & Claim Costs,PS&S - General Claims,Balfour Beatty Civil Eng Ltd,6901,4539.94
"Department for Business, Energy and Industrial Strategy",The Coal Authority,03/11/2016,Surface Hazards - Contractor & Claim Costs,PS&S - General Claims,Balfour Beatty Civil Eng Ltd,6902,4100.92
"Department for Business, Energy and Industrial Strategy",The Coal Authority,15/11/2016,Surface Hazards - Contractor & Claim Costs,PS&S - General Claims,Balfour Beatty Civil Eng Ltd,7142,86498.84
"Department for Business, Energy and Industrial Strategy",The Coal Authority,16/11/2016,Surface Hazards - Contractor & Claim Costs,PS&S - General Claims,Balfour Beatty Civil Eng Ltd,7144,6145.14
"Department for Business, Energy and Industrial Strategy",The Coal Authority,16/11/2016,Surface Hazards - Contractor & Claim Costs,PS&S - General Claims,Balfour Beatty Civil Eng Ltd,7146,4253.28
"Department for Business, Energy and Industrial Strategy",The Coal Authority,16/11/2016,Surface Hazards - Contractor & Claim Costs,PS&S - General Claims,Balfour Beatty Civil Eng Ltd,7149,197.3
"Department for Business, Energy and Industrial Strategy",The Coal Authority,17/11/2016,Surface Hazards - Contractor & Claim Costs,PS&S - General Claims,Balfour Beatty Civil Eng Ltd,7151,254.43
"Department for Business, Energy and Industrial Strategy",The Coal Authority,17/11/2016,Surface Hazards - Contractor & Claim Costs,PS&S - General Claims,Balfour Beatty Civil Eng Ltd,7153,196.88
"Department for Business, Energy and Industrial Strategy",The Coal Authority,23/11/2016,Surface Hazards - Contractor & Claim Costs,PS&S - General Claims,Balfour Beatty Civil Eng Ltd,7314,8539.98
"Department for Business, Energy and Industrial Strategy",The Coal Authority,23/11/2016,Surface Hazards - Contractor & Claim Costs,PS&S - General Claims,Balfour Beatty Civil Eng Ltd,7327,4023.02
"Department for Business, Energy and Industrial Strategy",The Coal Authority,24/11/2016,Surface Hazards - Contractor & Claim Costs,PS&S - General Claims,Balfour Beatty Civil Eng Ltd,7147,636
"Department for Business, Energy and Industrial Strategy",The Coal Authority,24/11/2016,Surface Hazards - Contractor & Claim Costs,PS&S - General Claims,Balfour Beatty Civil Eng Ltd,7148,148.5
"Department for Business, Energy and Industrial Strategy",The Coal Authority,24/11/2016,Surface Hazards - Contractor & Claim Costs,PS&S - General Claims,Balfour Beatty Civil Eng Ltd,7284,160.7
"Department for Business, Energy and Industrial Strategy",The Coal Authority,30/11/2016,Surface Hazards - Contractor & Claim Costs,PS&S - General Claims,Balfour Beatty Civil Eng Ltd,7317,6730.83
"Department for Business, Energy and Industrial Strategy",The Coal Authority,22/11/2016,Surface Hazards - Contractor & Claim Costs,PS&S - General Claims,Compensation Payment,7058,120
"Department for Business, Energy and Industrial Strategy",The Coal Authority,28/11/2016,Surface Hazards - Contractor & Claim Costs,PS&S - General Claims,Compensation Payment,7190,420
"Department for Business, Energy and Industrial Strategy",The Coal Authority,31/10/2016,Surface Hazards - Contractor & Claim Costs,PS&S - General Claims,Cornerstone  Projects Ltd,6849,251.7
"Department for Business, Energy and Industrial Strategy",The Coal Authority,14/11/2016,Surface Hazards - Contractor & Claim Costs,PS&S - General Claims,Cornerstone  Projects Ltd,7154,126
"Department for Business, Energy and Industrial Strategy",The Coal Authority,14/11/2016,Surface Hazards - Contractor & Claim Costs,PS&S - General Claims,Cornerstone  Projects Ltd,7157,58
"Department for Business, Energy and Industrial Strategy",The Coal Authority,31/10/2016,Surface Hazards - Contractor & Claim Costs,PS&S - General Claims,Geol-Consultants Ltd,6852,286
"Department for Business, Energy and Industrial Strategy",The Coal Authority,05/11/2016,Surface Hazards - Contractor & Claim Costs,PS&S - General Claims,Geol-Consultants Ltd,6850,1435
"Department for Business, Energy and Industrial Strategy",The Coal Authority,05/11/2016,Surface Hazards - Contractor & Claim Costs,PS&S - General Claims,Geol-Consultants Ltd,6851,1755
"Department for Business, Energy and Industrial Strategy",The Coal Authority,05/11/2016,Surface Hazards - Contractor & Claim Costs,PS&S - General Claims,Geol-Consultants Ltd,6854,1230
"Department for Business, Energy and Industrial Strategy",The Coal Authority,07/11/2016,Surface Hazards - Contractor & Claim Costs,PS&S - General Claims,Geol-Consultants Ltd,6853,1450
"Department for Business, Energy and Industrial Strategy",The Coal Authority,14/11/2016,Surface Hazards - Contractor & Claim Costs,PS&S - General Claims,Geol-Consultants Ltd,6984,17998.29
"Department for Business, Energy and Industrial Strategy",The Coal Authority,16/11/2016,Surface Hazards - Contractor & Claim Costs,PS&S - General Claims,J Murphy & Sons Limited,7166,3811.25
"Department for Business, Energy and Industrial Strategy",The Coal Authority,28/11/2016,Surface Hazards - Contractor & Claim Costs,PS&S - General Claims,Llettyshenkin Cons Co Ltd,7301,6730.1
"Department for Business, Energy and Industrial Strategy",The Coal Authority,15/11/2016,Surface Hazards - Contractor & Claim Costs,PS&S - General Claims,MESSRS A R ANDERSON,6928,201.6
"Department for Business, Energy and Industrial Strategy",The Coal Authority,15/11/2016,Surface Hazards - Contractor & Claim Costs,PS&S - General Claims,MESSRS A R ANDERSON,6928,80
"Department for Business, Energy and Industrial Strategy",The Coal Authority,28/11/2016,Surface Hazards - Contractor & Claim Costs,PS&S - General Claims,MESSRS A R ANDERSON,7185,757.65
"Department for Business, Energy and Industrial Strategy",The Coal Authority,22/11/2016,Surface Hazards - Contractor & Claim Costs,PS&S - General Claims,Mostyn Estate General,7060,617.14
"Department for Business, Energy and Industrial Strategy",The Coal Authority,28/10/2016,Surface Hazards - Contractor & Claim Costs,PS&S - General Claims,Nal Plant Limited,6840,2565.34
"Department for Business, Energy and Industrial Strategy",The Coal Authority,11/10/2016,Surface Hazards - Contractor & Claim Costs,PS&S - General Claims,Quantum Geotechnical Ltd,7212,24806.9
"Department for Business, Energy and Industrial Strategy",The Coal Authority,15/11/2016,Surface Hazards - Contractor & Claim Costs,PS&S - General Claims,W Faill and Sons Limited,6941,2850
"Department for Business, Energy and Industrial Strategy",The Coal Authority,22/11/2016,Surface Hazards - Contractor & Claim Costs,PS&S - General Claims,W Faill and Sons Limited,7059,1500
"Department for Business, Energy and Industrial Strategy",The Coal Authority,15/11/2016,Surface Hazards - Contractor & Claim Costs,PS&S - General Claims,Watts & Morgan,6930,744
"Department for Business, Energy and Industrial Strategy",The Coal Authority,15/11/2016,Surface Hazards - Contractor & Claim Costs,PS&S - General Claims,Watts & Morgan,6938,720
"Department for Business, Energy and Industrial Strategy",The Coal Authority,31/10/2016,Surface Hazards - Equipment,PS&S - General Claims,Environmental Scientifics Grp,7011,1418.1
"Department for Business, Energy and Industrial Strategy",The Coal Authority,03/10/2016,Surface Hazards - Equipment,PS&S - General Claims,RBS GPC Sept 2016,7288,93.53
"Department for Business, Energy and Industrial Strategy",The Coal Authority,03/11/2016,Surface Hazards - Outsourced Management,PS&S - General Claims,Mines Rescue Service Limited,6860,15150
"Department for Business, Energy and Industrial Strategy",The Coal Authority,28/10/2016,Temporary Contractors,PS&S - General Claims,Key Personnel Solutions Ltd,6920,433.06
"Department for Business, Energy and Industrial Strategy",The Coal Authority,11/11/2016,Temporary Contractors,PS&S - General Claims,Key Personnel Solutions Ltd,7164,425.72
"Department for Business, Energy and Industrial Strategy",The Coal Authority,31/10/2016,Subsidence - Contractor & Claim Costs,PS&S - Hatfield,Briggs Land Drainage & Excavations Ltd,7319,16140.83
"Department for Business, Energy and Industrial Strategy",The Coal Authority,31/10/2016,Subsidence - Contractor & Claim Costs,PS&S - Hatfield,Briggs Land Drainage & Excavations Ltd,7329,3469.42
"Department for Business, Energy and Industrial Strategy",The Coal Authority,22/11/2016,Subsidence - Contractor & Claim Costs,PS&S - Hatfield,C Goldthorpe & Sons,7083,3780
"Department for Business, Energy and Industrial Strategy",The Coal Authority,14/11/2016,Subsidence - Contractor & Claim Costs,PS&S - Hatfield,Cornerstone  Projects Ltd,7156,302.2
"Department for Business, Energy and Industrial Strategy",The Coal Authority,28/11/2016,Subsidence - Contractor & Claim Costs,PS&S - Hatfield,J H Pickup & Co,7200,1433
"Department for Business, Energy and Industrial Strategy",The Coal Authority,18/11/2016,Subsidence - Contractor & Claim Costs,PS&S - Hatfield,Steve Vine Land Drainage Sltns,7238,355
"Department for Business, Energy and Industrial Strategy",The Coal Authority,18/11/2016,Subsidence - Contractor & Claim Costs,PS&S - Hatfield,Steve Vine Land Drainage Sltns,7239,105
"Department for Business, Energy and Industrial Strategy",The Coal Authority,18/11/2016,Subsidence - Contractor & Claim Costs,PS&S - Hatfield,Steve Vine Land Drainage Sltns,7240,385
"Department for Business, Energy and Industrial Strategy",The Coal Authority,18/11/2016,Subsidence - Contractor & Claim Costs,PS&S - Hatfield,Steve Vine Land Drainage Sltns,7241,380
"Department for Business, Energy and Industrial Strategy",The Coal Authority,18/11/2016,Subsidence - Contractor & Claim Costs,PS&S - Hatfield,Steve Vine Land Drainage Sltns,7242,105
"Department for Business, Energy and Industrial Strategy",The Coal Authority,18/11/2016,Subsidence - Contractor & Claim Costs,PS&S - Hatfield,Steve Vine Land Drainage Sltns,7244,430
"Department for Business, Energy and Industrial Strategy",The Coal Authority,18/11/2016,Subsidence - Contractor & Claim Costs,PS&S - Hatfield,Steve Vine Land Drainage Sltns,7245,210
"Department for Business, Energy and Industrial Strategy",The Coal Authority,18/11/2016,Subsidence - Contractor & Claim Costs,PS&S - Hatfield,Steve Vine Land Drainage Sltns,7246,245
"Department for Business, Energy and Industrial Strategy",The Coal Authority,18/11/2016,Subsidence - Contractor & Claim Costs,PS&S - Hatfield,Steve Vine Land Drainage Sltns,7247,170
"Department for Business, Energy and Industrial Strategy",The Coal Authority,18/11/2016,Subsidence - Contractor & Claim Costs,PS&S - Hatfield,Steve Vine Land Drainage Sltns,7248,370
"Department for Business, Energy and Industrial Strategy",The Coal Authority,18/11/2016,Subsidence - Contractor & Claim Costs,PS&S - Hatfield,Steve Vine Land Drainage Sltns,7249,140
"Department for Business, Energy and Industrial Strategy",The Coal Authority,18/11/2016,Subsidence - Contractor & Claim Costs,PS&S - Hatfield,Steve Vine Land Drainage Sltns,7250,945
"Department for Business, Energy and Industrial Strategy",The Coal Authority,18/11/2016,Subsidence - Contractor & Claim Costs,PS&S - Hatfield,Steve Vine Land Drainage Sltns,7252,70
"Department for Business, Energy and Industrial Strategy",The Coal Authority,29/11/2016,Subsidence - Contractor & Claim Costs,PS&S - Hatfield,Steve Vine Land Drainage Sltns,7243,535
"Department for Business, Energy and Industrial Strategy",The Coal Authority,29/11/2016,Surface Hazards - Contractor & Claim Costs,PS&S - Hatfield,Pmc Surveys,7280,810.79
"Department for Business, Energy and Industrial Strategy",The Coal Authority,31/10/2016,Contract Hire Vehicles,PS&S - Industry Claims,Alphabet Uk Fleet Man Ltd,7135,344.86
"Department for Business, Energy and Industrial Strategy",The Coal Authority,26/10/2016,Fuel (Vehicle),PS&S - Industry Claims,Allstar Business Solutions Ltd,7124,80.94
"Department for Business, Energy and Industrial Strategy",The Coal Authority,03/10/2016,Fuel (Vehicle),PS&S - Industry Claims,RBS GPC Sept 2016,7288,72.58
"Department for Business, Energy and Industrial Strategy",The Coal Authority,03/10/2016,Incidentals,PS&S - Industry Claims,RBS GPC Sept 2016,7288,33.39
"Department for Business, Energy and Industrial Strategy",The Coal Authority,28/10/2016,Legal - Property Title Search,PS&S - Industry Claims,Mda Searchflow Ltd,6806,238.86
"Department for Business, Energy and Industrial Strategy",The Coal Authority,03/10/2016,Subsistence Allowances,PS&S - Industry Claims,RBS GPC Sept 2016,7288,71.37
"Department for Business, Energy and Industrial Strategy",The Coal Authority,03/10/2016,Training & Education,PS&S - Industry Claims,RBS GPC Sept 2016,7288,-36.67
"Department for Business, Energy and Industrial Strategy",The Coal Authority,08/11/2016,Legal - General,PS&S - Kellingley,Dla Piper Uk Llp,7322,1032
"Department for Business, Energy and Industrial Strategy",The Coal Authority,14/11/2016,Subsidence - Contractor & Claim Costs,PS&S - Kellingley,2E2 Uk Limited,7040,300
"Department for Business, Energy and Industrial Strategy",The Coal Authority,18/10/2016,Subsidence - Contractor & Claim Costs,PS&S - Kellingley,6558 - EON - Input VAT trf'd 70500,7182,-2.84
"Department for Business, Energy and Industrial Strategy",The Coal Authority,08/11/2016,Subsidence - Contractor & Claim Costs,PS&S - Kellingley,6989-First Utility-Duplicate charges,7162,-21.04
"Department for Business, Energy and Industrial Strategy",The Coal Authority,27/07/2016,Subsidence - Contractor & Claim Costs,PS&S - Kellingley,ABI,7127,650
"Department for Business, Energy and Industrial Strategy",The Coal Authority,01/11/2016,Subsidence - Contractor & Claim Costs,PS&S - Kellingley,ABI,6962,350
"Department for Business, Energy and Industrial Strategy",The Coal Authority,25/10/2016,Subsidence - Contractor & Claim Costs,PS&S - Kellingley,Bradley Building Contractors,6905,797.12
"Department for Business, Energy and Industrial Strategy",The Coal Authority,27/10/2016,Subsidence - Contractor & Claim Costs,PS&S - Kellingley,Bradley Building Contractors,6904,362.6
"Department for Business, Energy and Industrial Strategy",The Coal Authority,28/10/2016,Subsidence - Contractor & Claim Costs,PS&S - Kellingley,Bradley Building Contractors,6903,6441.7
"Department for Business, Energy and Industrial Strategy",The Coal Authority,11/11/2016,Subsidence - Contractor & Claim Costs,PS&S - Kellingley,Bradley Building Contractors,7141,120
"Department for Business, Energy and Industrial Strategy",The Coal Authority,17/11/2016,Subsidence - Contractor & Claim Costs,PS&S - Kellingley,Bradley Building Contractors,7331,3665.15
"Department for Business, Energy and Industrial Strategy",The Coal Authority,02/11/2016,Subsidence - Contractor & Claim Costs,PS&S - Kellingley,Compensation Payment,6567,8602.04
"Department for Business, Energy and Industrial Strategy",The Coal Authority,02/11/2016,Subsidence - Contractor & Claim Costs,PS&S - Kellingley,Compensation Payment,6573,12044.73
"Department for Business, Energy and Industrial Strategy",The Coal Authority,02/11/2016,Subsidence - Contractor & Claim Costs,PS&S - Kellingley,Compensation Payment,6576,13927.1
"Department for Business, Energy and Industrial Strategy",The Coal Authority,02/11/2016,Subsidence - Contractor & Claim Costs,PS&S - Kellingley,Compensation Payment,6578,4224.4
"Department for Business, Energy and Industrial Strategy",The Coal Authority,02/11/2016,Subsidence - Contractor & Claim Costs,PS&S - Kellingley,Compensation Payment,6579,3129.75
"Department for Business, Energy and Industrial Strategy",The Coal Authority,15/11/2016,Subsidence - Contractor & Claim Costs,PS&S - Kellingley,Compensation Payment,6929,25245
"Department for Business, Energy and Industrial Strategy",The Coal Authority,28/11/2016,Subsidence - Contractor & Claim Costs,PS&S - Kellingley,Compensation Payment,7196,2191.98
"Department for Business, Energy and Industrial Strategy",The Coal Authority,15/11/2016,Subsidence - Contractor & Claim Costs,PS&S - Kellingley,David hough Building Surveyor Limited,6943,2354.7
"Department for Business, Energy and Industrial Strategy",The Coal Authority,15/11/2016,Subsidence - Contractor & Claim Costs,PS&S - Kellingley,David Wilson,7041,270
"Department for Business, Energy and Industrial Strategy",The Coal Authority,26/10/2016,Subsidence - Contractor & Claim Costs,PS&S - Kellingley,Dominic & Sons,6877,1640
"Department for Business, Energy and Industrial Strategy",The Coal Authority,07/11/2016,Subsidence - Contractor & Claim Costs,PS&S - Kellingley,Dominic & Sons,7038,940
"Department for Business, Energy and Industrial Strategy",The Coal Authority,07/11/2016,Subsidence - Contractor & Claim Costs,PS&S - Kellingley,Dominic & Sons,7039,1095
"Department for Business, Energy and Industrial Strategy",The Coal Authority,18/10/2016,Subsidence - Contractor & Claim Costs,PS&S - Kellingley,E.ON,6558,59.55
"Department for Business, Energy and Industrial Strategy",The Coal Authority,28/10/2016,Subsidence - Contractor & Claim Costs,PS&S - Kellingley,Farrington Holmes Asbestos Solutions,6871,150
"Department for Business, Energy and Industrial Strategy",The Coal Authority,28/10/2016,Subsidence - Contractor & Claim Costs,PS&S - Kellingley,Farrington Holmes Asbestos Solutions,6872,150
"Department for Business, Energy and Industrial Strategy",The Coal Authority,11/11/2016,Subsidence - Contractor & Claim Costs,PS&S - Kellingley,Farrington Holmes Asbestos Solutions,6988,200
"Department for Business, Energy and Industrial Strategy",The Coal Authority,08/11/2016,Subsidence - Contractor & Claim Costs,PS&S - Kellingley,First Utility Limited,6989,119.37
"Department for Business, Energy and Industrial Strategy",The Coal Authority,28/11/2016,Subsidence - Contractor & Claim Costs,PS&S - Kellingley,J H Pickup & Co,7194,720
"Department for Business, Energy and Industrial Strategy",The Coal Authority,22/11/2016,Subsidence - Contractor & Claim Costs,PS&S - Kellingley,J T Wood & Son,7078,401
"Department for Business, Energy and Industrial Strategy",The Coal Authority,22/11/2016,Subsidence - Contractor & Claim Costs,PS&S - Kellingley,J T Wood & Son,7079,9265.09
"Department for Business, Energy and Industrial Strategy",The Coal Authority,22/11/2016,Subsidence - Contractor & Claim Costs,PS&S - Kellingley,J T Wood & Son,7075,479.5
"Department for Business, Energy and Industrial Strategy",The Coal Authority,30/10/2016,Subsidence - Contractor & Claim Costs,PS&S - Kellingley,K W Garden Maintenance & Landscaping,6910,262.5
"Department for Business, Energy and Industrial Strategy",The Coal Authority,30/10/2016,Subsidence - Contractor & Claim Costs,PS&S - Kellingley,K W Garden Maintenance & Landscaping,6911,95
"Department for Business, Energy and Industrial Strategy",The Coal Authority,30/10/2016,Subsidence - Contractor & Claim Costs,PS&S - Kellingley,K W Garden Maintenance & Landscaping,6912,95
"Department for Business, Energy and Industrial Strategy",The Coal Authority,30/10/2016,Subsidence - Contractor & Claim Costs,PS&S - Kellingley,K W Garden Maintenance & Landscaping,6913,95
"Department for Business, Energy and Industrial Strategy",The Coal Authority,30/10/2016,Subsidence - Contractor & Claim Costs,PS&S - Kellingley,K W Garden Maintenance & Landscaping,6914,145
"Department for Business, Energy and Industrial Strategy",The Coal Authority,28/11/2016,Subsidence - Contractor & Claim Costs,PS&S - Kellingley,M H Poskitt Limited,7198,1260
"Department for Business, Energy and Industrial Strategy",The Coal Authority,22/11/2016,Subsidence - Contractor & Claim Costs,PS&S - Kellingley,Compensation Payment,7062,6858.03
"Department for Business, Energy and Industrial Strategy",The Coal Authority,28/10/2016,Subsidence - Contractor & Claim Costs,PS&S - Kellingley,Nal Plant Limited,6837,1836.39
"Department for Business, Energy and Industrial Strategy",The Coal Authority,28/10/2016,Subsidence - Contractor & Claim Costs,PS&S - Kellingley,Nal Plant Limited,6838,23928.38
"Department for Business, Energy and Industrial Strategy",The Coal Authority,28/10/2016,Subsidence - Contractor & Claim Costs,PS&S - Kellingley,Nal Plant Limited,6843,1744.69
"Department for Business, Energy and Industrial Strategy",The Coal Authority,14/10/2016,Subsidence - Contractor & Claim Costs,PS&S - Kellingley,Neil Thompson,6822,2500
"Department for Business, Energy and Industrial Strategy",The Coal Authority,27/10/2016,Subsidence - Contractor & Claim Costs,PS&S - Kellingley,Neil Thompson,6783,127.6
"Department for Business, Energy and Industrial Strategy",The Coal Authority,27/10/2016,Subsidence - Contractor & Claim Costs,PS&S - Kellingley,Neil Thompson,6785,782.26
"Department for Business, Energy and Industrial Strategy",The Coal Authority,03/11/2016,Subsidence - Contractor & Claim Costs,PS&S - Kellingley,Neil Thompson,6784,6995.8
"Department for Business, Energy and Industrial Strategy",The Coal Authority,07/11/2016,Subsidence - Contractor & Claim Costs,PS&S - Kellingley,Neil Thompson,7022,342.8
"Department for Business, Energy and Industrial Strategy",The Coal Authority,07/11/2016,Subsidence - Contractor & Claim Costs,PS&S - Kellingley,Neil Thompson,7023,2500
"Department for Business, Energy and Industrial Strategy",The Coal Authority,10/11/2016,Subsidence - Contractor & Claim Costs,PS&S - Kellingley,Neil Thompson,7024,3416.88
"Department for Business, Energy and Industrial Strategy",The Coal Authority,10/11/2016,Subsidence - Contractor & Claim Costs,PS&S - Kellingley,Neil Thompson,7025,224.4
"Department for Business, Energy and Industrial Strategy",The Coal Authority,10/11/2016,Subsidence - Contractor & Claim Costs,PS&S - Kellingley,Neil Thompson,7026,4018.12
"Department for Business, Energy and Industrial Strategy",The Coal Authority,10/11/2016,Subsidence - Contractor & Claim Costs,PS&S - Kellingley,Neil Thompson,7027,13607
"Department for Business, Energy and Industrial Strategy",The Coal Authority,10/11/2016,Subsidence - Contractor & Claim Costs,PS&S - Kellingley,Neil Thompson,7028,176
"Department for Business, Energy and Industrial Strategy",The Coal Authority,16/11/2016,Subsidence - Contractor & Claim Costs,PS&S - Kellingley,Neil Thompson,7017,29417.7
"Department for Business, Energy and Industrial Strategy",The Coal Authority,16/11/2016,Subsidence - Contractor & Claim Costs,PS&S - Kellingley,Neil Thompson,7018,1545.5
"Department for Business, Energy and Industrial Strategy",The Coal Authority,16/11/2016,Subsidence - Contractor & Claim Costs,PS&S - Kellingley,Neil Thompson,7019,4685.27
"Department for Business, Energy and Industrial Strategy",The Coal Authority,25/11/2016,Subsidence - Contractor & Claim Costs,PS&S - Kellingley,Neil Thompson,7325,1500.21
"Department for Business, Energy and Industrial Strategy",The Coal Authority,25/11/2016,Subsidence - Contractor & Claim Costs,PS&S - Kellingley,Neil Thompson,7326,93.5
"Department for Business, Energy and Industrial Strategy",The Coal Authority,02/11/2016,Subsidence - Contractor & Claim Costs,PS&S - Kellingley,Ransomes Land & Mineral Surveyors,6568,908.2
"Department for Business, Energy and Industrial Strategy",The Coal Authority,02/11/2016,Subsidence - Contractor & Claim Costs,PS&S - Kellingley,Ransomes Land & Mineral Surveyors,6569,1444.35
"Department for Business, Energy and Industrial Strategy",The Coal Authority,02/11/2016,Subsidence - Contractor & Claim Costs,PS&S - Kellingley,Ransomes Land & Mineral Surveyors,6570,470.44
"Department for Business, Energy and Industrial Strategy",The Coal Authority,02/11/2016,Subsidence - Contractor & Claim Costs,PS&S - Kellingley,Ransomes Land & Mineral Surveyors,6571,1426
"Department for Business, Energy and Industrial Strategy",The Coal Authority,02/11/2016,Subsidence - Contractor & Claim Costs,PS&S - Kellingley,Ransomes Land & Mineral Surveyors,6572,1350
"Department for Business, Energy and Industrial Strategy",The Coal Authority,22/11/2016,Subsidence - Contractor & Claim Costs,PS&S - Kellingley,Ransomes Land & Mineral Surveyors,7063,2230
"Department for Business, Energy and Industrial Strategy",The Coal Authority,22/11/2016,Subsidence - Contractor & Claim Costs,PS&S - Kellingley,Ransomes Land & Mineral Surveyors,7070,762.45
"Department for Business, Energy and Industrial Strategy",The Coal Authority,22/11/2016,Subsidence - Contractor & Claim Costs,PS&S - Kellingley,Ransomes Land & Mineral Surveyors,7071,420
"Department for Business, Energy and Industrial Strategy",The Coal Authority,22/11/2016,Subsidence - Contractor & Claim Costs,PS&S - Kellingley,Ransomes Land & Mineral Surveyors,7072,390
"Department for Business, Energy and Industrial Strategy",The Coal Authority,22/11/2016,Subsidence - Contractor & Claim Costs,PS&S - Kellingley,Ransomes Land & Mineral Surveyors,7073,847.95
"Department for Business, Energy and Industrial Strategy",The Coal Authority,28/11/2016,Subsidence - Contractor & Claim Costs,PS&S - Kellingley,Ransomes Land & Mineral Surveyors,7193,267.2
"Department for Business, Energy and Industrial Strategy",The Coal Authority,31/10/2016,Subsidence - Contractor & Claim Costs,PS&S - Kellingley,Ray Holt Land Drainage Ltd,6969,8167.34
"Department for Business, Energy and Industrial Strategy",The Coal Authority,25/10/2016,Subsidence - Contractor & Claim Costs,PS&S - Kellingley,Selby District Council,6801,-223.22
"Department for Business, Energy and Industrial Strategy",The Coal Authority,25/11/2016,Subsidence - Contractor & Claim Costs,PS&S - Kellingley,Selby District Council,7304,89.93
"Department for Business, Energy and Industrial Strategy",The Coal Authority,28/11/2016,Subsidence - Contractor & Claim Costs,PS&S - Kellingley,Stepheson & Son,7186,998.34
"Department for Business, Energy and Industrial Strategy",The Coal Authority,28/11/2016,Subsidence - Contractor & Claim Costs,PS&S - Kellingley,Stepheson & Son,7188,683.23
"Department for Business, Energy and Industrial Strategy",The Coal Authority,18/11/2016,Subsidence - Contractor & Claim Costs,PS&S - Kellingley,Steve Vine Land Drainage Sltns,7253,350
"Department for Business, Energy and Industrial Strategy",The Coal Authority,18/11/2016,Subsidence - Contractor & Claim Costs,PS&S - Kellingley,Steve Vine Land Drainage Sltns,7254,350
"Department for Business, Energy and Industrial Strategy",The Coal Authority,18/11/2016,Subsidence - Contractor & Claim Costs,PS&S - Kellingley,Steve Vine Land Drainage Sltns,7255,336
"Department for Business, Energy and Industrial Strategy",The Coal Authority,18/11/2016,Subsidence - Contractor & Claim Costs,PS&S - Kellingley,Steve Vine Land Drainage Sltns,7256,616
"Department for Business, Energy and Industrial Strategy",The Coal Authority,22/11/2016,Surface Hazards - Contractor & Claim Costs,PS&S - Kellingley,J T Wood & Son,7074,3518.96
"Department for Business, Energy and Industrial Strategy",The Coal Authority,22/11/2016,Surface Hazards - Contractor & Claim Costs,PS&S - Kellingley,J T Wood & Son,7076,2900
"Department for Business, Energy and Industrial Strategy",The Coal Authority,22/11/2016,Surface Hazards - Contractor & Claim Costs,PS&S - Kellingley,Ransomes Land & Mineral Surveyors,7081,675.6
"Department for Business, Energy and Industrial Strategy",The Coal Authority,22/11/2016,Surface Hazards - Contractor & Claim Costs,PS&S - Kellingley,Ransomes Land & Mineral Surveyors,7082,645.6
"Department for Business, Energy and Industrial Strategy",The Coal Authority,03/10/2016,Contract Hire Vehicles,PS&S - Management,RBS GPC Sept 2016,7288,57.76
"Department for Business, Energy and Industrial Strategy",The Coal Authority,03/10/2016,Fuel (Vehicle),PS&S - Management,RBS GPC Sept 2016,7288,3.33
"Department for Business, Energy and Industrial Strategy",The Coal Authority,03/10/2016,Hotel & Accommodation,PS&S - Management,RBS GPC Sept 2016,7288,32.42
"Department for Business, Energy and Industrial Strategy",The Coal Authority,03/10/2016,Incidentals,PS&S - Management,RBS GPC Sept 2016,7288,163.32
"Department for Business, Energy and Industrial Strategy",The Coal Authority,30/11/2016,Membership Subscriptions,PS&S - Management,GPC September 2016 - VAT claimed in erro,7626,16.67
"Department for Business, Energy and Industrial Strategy",The Coal Authority,03/10/2016,Membership Subscriptions,PS&S - Management,RBS GPC Sept 2016,7288,83.33
"Department for Business, Energy and Industrial Strategy",The Coal Authority,03/10/2016,Subsistence Allowances,PS&S - Management,RBS GPC Sept 2016,7288,34.74
"Department for Business, Energy and Industrial Strategy",The Coal Authority,03/10/2016,Training & Education,PS&S - Management,RBS GPC Sept 2016,7288,160
"Department for Business, Energy and Industrial Strategy",The Coal Authority,28/11/2016,Subsidence - Contractor & Claim Costs,PS&S - Thoresby,2776 AECOM,7197,4449.76
"Department for Business, Energy and Industrial Strategy",The Coal Authority,10/11/2016,Subsidence - Contractor & Claim Costs,PS&S - Thoresby,Aecom Infrastructure & Env,7133,9582.53
"Department for Business, Energy and Industrial Strategy",The Coal Authority,15/11/2016,Subsidence - Contractor & Claim Costs,PS&S - Thoresby,C A Neal,6931,570.64
"Department for Business, Energy and Industrial Strategy",The Coal Authority,15/11/2016,Subsidence - Contractor & Claim Costs,PS&S - Thoresby,C A Neal,6937,518.03
"Department for Business, Energy and Industrial Strategy",The Coal Authority,15/11/2016,Subsidence - Contractor & Claim Costs,PS&S - Thoresby,C A Neal,6939,465.44
"Department for Business, Energy and Industrial Strategy",The Coal Authority,15/11/2016,Subsidence - Contractor & Claim Costs,PS&S - Thoresby,C A Neal,6939,436.33
"Department for Business, Energy and Industrial Strategy",The Coal Authority,15/11/2016,Subsidence - Contractor & Claim Costs,PS&S - Thoresby,C A Neal,6939,597.42
"Department for Business, Energy and Industrial Strategy",The Coal Authority,15/11/2016,Subsidence - Contractor & Claim Costs,PS&S - Thoresby,C A Neal,6940,570.24
"Department for Business, Energy and Industrial Strategy",The Coal Authority,15/11/2016,Subsidence - Contractor & Claim Costs,PS&S - Thoresby,C A Neal,6940,673.76
"Department for Business, Energy and Industrial Strategy",The Coal Authority,15/11/2016,Subsidence - Contractor & Claim Costs,PS&S - Thoresby,C A Neal,6934,537.64
"Department for Business, Energy and Industrial Strategy",The Coal Authority,22/11/2016,Subsidence - Contractor & Claim Costs,PS&S - Thoresby,C A Neal,7080,335.93
"Department for Business, Energy and Industrial Strategy",The Coal Authority,22/11/2016,Subsidence - Contractor & Claim Costs,PS&S - Thoresby,C A Neal,7061,908.7
"Department for Business, Energy and Industrial Strategy",The Coal Authority,31/10/2016,Subsidence - Contractor & Claim Costs,PS&S - Thoresby,Cornerstone  Projects Ltd,6846,103
"Department for Business, Energy and Industrial Strategy",The Coal Authority,28/10/2016,Subsidence - Contractor & Claim Costs,PS&S - Thoresby,Nal Plant Limited,6839,3667.81
"Department for Business, Energy and Industrial Strategy",The Coal Authority,28/10/2016,Subsidence - Contractor & Claim Costs,PS&S - Thoresby,Nal Plant Limited,6841,2056.89
"Department for Business, Energy and Industrial Strategy",The Coal Authority,28/10/2016,Subsidence - Contractor & Claim Costs,PS&S - Thoresby,Nal Plant Limited,6842,2348
"Department for Business, Energy and Industrial Strategy",The Coal Authority,09/11/2016,Subsidence - Contractor & Claim Costs,PS&S - Thoresby,Nal Plant Limited,7338,2873.98
"Department for Business, Energy and Industrial Strategy",The Coal Authority,09/11/2016,Subsidence - Contractor & Claim Costs,PS&S - Thoresby,Nal Plant Limited,7339,4431.22
"Department for Business, Energy and Industrial Strategy",The Coal Authority,15/11/2016,Subsidence - Contractor & Claim Costs,PS&S - Thoresby,Nal Plant Limited,7330,3398.79
"Department for Business, Energy and Industrial Strategy",The Coal Authority,15/11/2016,Subsidence - Contractor & Claim Costs,PS&S - Thoresby,Nal Plant Limited,7336,1383.44
"Department for Business, Energy and Industrial Strategy",The Coal Authority,15/11/2016,Subsidence - Contractor & Claim Costs,PS&S - Thoresby,Nal Plant Limited,7343,3070.04
"Department for Business, Energy and Industrial Strategy",The Coal Authority,15/11/2016,Subsidence - Contractor & Claim Costs,PS&S - Thoresby,Pierrepont Estate Management,6927,10788.56
"Department for Business, Energy and Industrial Strategy",The Coal Authority,18/11/2016,Subsidence - Contractor & Claim Costs,PS&S - Thoresby,Steve Vine Land Drainage Sltns,7237,490
"Department for Business, Energy and Industrial Strategy",The Coal Authority,07/11/2016,Subsidence - Contractor & Claim Costs,PS&S - Thoresby,Thoresby Estate,6756,3396.54
"Department for Business, Energy and Industrial Strategy",The Coal Authority,25/11/2016,Subsidence - Contractor & Claim Costs,PS&S - Thoresby,Wardell Armstrong Llp,7175,2300.76
"Department for Business, Energy and Industrial Strategy",The Coal Authority,15/11/2016,Central Training,Safety Health & Environment,Mines Rescue Service Limited,7234,202
"Department for Business, Energy and Industrial Strategy",The Coal Authority,08/11/2016,Central Training,Safety Health & Environment,Risk & Safety Management Serv,7172,499
"Department for Business, Energy and Industrial Strategy",The Coal Authority,03/10/2016,Hotel & Accommodation,Safety Health & Environment,RBS GPC Sept 2016,7288,945
"Department for Business, Energy and Industrial Strategy",The Coal Authority,03/10/2016,Incidentals,Safety Health & Environment,RBS GPC Sept 2016,7288,16
"Department for Business, Energy and Industrial Strategy",The Coal Authority,11/11/2016,Personal Protective Equipment,Safety Health & Environment,6131 - Arco,6782,93.13
"Department for Business, Energy and Industrial Strategy",The Coal Authority,27/10/2016,Personal Protective Equipment,Safety Health & Environment,Arco Limited,7093,69.99
"Department for Business, Energy and Industrial Strategy",The Coal Authority,27/10/2016,Personal Protective Equipment,Safety Health & Environment,Arco Limited,7100,11.34
"Department for Business, Energy and Industrial Strategy",The Coal Authority,31/10/2016,Personal Protective Equipment,Safety Health & Environment,Arco Limited,7094,46.52
"Department for Business, Energy and Industrial Strategy",The Coal Authority,02/11/2016,Personal Protective Equipment,Safety Health & Environment,Arco Limited,7095,21.02
"Department for Business, Energy and Industrial Strategy",The Coal Authority,02/11/2016,Personal Protective Equipment,Safety Health & Environment,Arco Limited,7096,101.16
"Department for Business, Energy and Industrial Strategy",The Coal Authority,03/11/2016,Personal Protective Equipment,Safety Health & Environment,Arco Limited,7097,66.37
"Department for Business, Energy and Industrial Strategy",The Coal Authority,03/11/2016,Personal Protective Equipment,Safety Health & Environment,Arco Limited,7098,39.61
"Department for Business, Energy and Industrial Strategy",The Coal Authority,04/11/2016,Personal Protective Equipment,Safety Health & Environment,Arco Limited,7099,22.48
"Department for Business, Energy and Industrial Strategy",The Coal Authority,15/11/2016,Personal Protective Equipment,Safety Health & Environment,Arco Limited,7132,203.47
"Department for Business, Energy and Industrial Strategy",The Coal Authority,16/11/2016,Personal Protective Equipment,Safety Health & Environment,Arco Limited,7089,24.98
"Department for Business, Energy and Industrial Strategy",The Coal Authority,03/10/2016,Personal Protective Equipment,Safety Health & Environment,RBS GPC Sept 2016,7288,110.55
"Department for Business, Energy and Industrial Strategy",The Coal Authority,11/11/2016,Short Term Vehicle Hire,Safety Health & Environment,6131 - Arco,6782,-93.13
"Department for Business, Energy and Industrial Strategy",The Coal Authority,03/10/2016,Staff Events,Safety Health & Environment,RBS GPC Sept 2016,7288,5
"Department for Business, Energy and Industrial Strategy",The Coal Authority,03/10/2016,Subsistence Allowances,Safety Health & Environment,RBS GPC Sept 2016,7288,187.55
"Department for Business, Energy and Industrial Strategy",The Coal Authority,03/10/2016,Training & Education,Safety Health & Environment,RBS GPC Sept 2016,7288,274.99
"Department for Business, Energy and Industrial Strategy",The Coal Authority,03/10/2016,Desktop Computing,Service Management,RBS GPC Sept 2016,7288,204.3
"Department for Business, Energy and Industrial Strategy",The Coal Authority,21/11/2016,Desktop Telephony Equipment,Service Management,Daisy Communications Ltd,7035,3923.09
"Department for Business, Energy and Industrial Strategy",The Coal Authority,03/10/2016,Hardware Equipment & Support,Service Management,RBS GPC Sept 2016,7288,76.1
"Department for Business, Energy and Industrial Strategy",The Coal Authority,24/10/2016,Mobiles Phones - Call Charges,Service Management,Vodafone Limited (Corporate),7312,558.07
"Department for Business, Energy and Industrial Strategy",The Coal Authority,24/10/2016,Mobiles Phones - Line Rent,Service Management,Vodafone Limited (Corporate),7312,7015.48
"Department for Business, Energy and Industrial Strategy",The Coal Authority,27/10/2016,Office Printing Services,Service Management,Konica Minolta,6863,4311.87
"Department for Business, Energy and Industrial Strategy",The Coal Authority,14/10/2016,Office Telephony - Call Charges,Service Management,British Telecommunications Plc,6549,24.9
"Department for Business, Energy and Industrial Strategy",The Coal Authority,01/11/2016,Office Telephony - Call Charges,Service Management,Daisy Communications Ltd,7323,343.63
"Department for Business, Energy and Industrial Strategy",The Coal Authority,14/10/2016,Office Telephony - Line Rent,Service Management,British Telecommunications Plc,6549,2361.19
"Department for Business, Energy and Industrial Strategy",The Coal Authority,01/11/2016,Office Telephony - Line Rent,Service Management,Daisy Communications Ltd,7323,1704.45
"Department for Business, Energy and Industrial Strategy",The Coal Authority,03/10/2016,Other Hosting / IaaS,Service Management,RBS GPC Sept 2016,7288,50
"Department for Business, Energy and Industrial Strategy",The Coal Authority,03/10/2016,Peripherals / Consumables (MEP),Service Management,RBS GPC Sept 2016,7288,326.21
"Department for Business, Energy and Industrial Strategy",The Coal Authority,03/10/2016,Software Licenses - SaaS,Service Management,RBS GPC Sept 2016,7288,1199.03
"Department for Business, Energy and Industrial Strategy",The Coal Authority,03/10/2016,Staff Events,Service Management,RBS GPC Sept 2016,7288,56.8
"Department for Business, Energy and Industrial Strategy",The Coal Authority,03/10/2016,Subsistence Allowances,Service Management,RBS GPC Sept 2016,7288,24.87
